Cogmind - Beta 12 @@@ ROGUE MODE // 2023.04.07 @ 04:28:00 Player: Red Box Result: Destroyed by G-67 Veteran with Plasma Rifle Performance ------------- Evolutions (7) 3500 Regions Visited (35) 7000 Robots Destroyed (598) 2990 Value Destroyed (31988) 31988 Prototype IDs (64) 1280 Alien Tech Used (4) 800 Bonus (27212) 27212 TOTAL SCORE: 74770 Bonus ------- Triggered High Security 500 High Alert Combat Kills 12042 Follower Combat Kills 6280 Entered Garrisons 1200 Network Hubs Disabled 200 Met Data Miner 300 Met Imprinter 300 Built Enhanced Grunts 300 A7 Reached Mainframe 300 Met R17 at Cetus 500 Used Core Reset Matrix 3000 Met R17 at Research 2000 Scanned by Researcher 500 Met Sigix 2000 Friendly Fire -2210 Cogmind --------- Core Integrity 0/1300 Matter 210/300 Energy 444/600 System Corruption 1% Temperature Cool (5) Movement Core (1400) Ox27 Location -3/Quarantine Parts ------- > --- POWER (2) -------- (None) > --- PROPULSION (4) --- (None) > --- UTILITY (13) ----- Huge Storage Unit Advanced Energy Well Experimental Core Analyzer Advanced Corruption Screen Advanced Corruption Screen > --- WEAPON (2) ------- (None) > --- INVENTORY (25) --- Light Antimatter Reactor Encrypted Comm Array Authchip [Propulsion] Subatomic Replicator Terrabomb Compact HERF Cannon Core Stripper Sigix Containment Pod Peak State ------------ > --- POWER ------------ Antimatter Reactor Quantum Reactor > --- PROPULSION ------- Heavy Treads Improved Heavy Treads > --- UTILITY ---------- Advanced Power Amplifier Experimental Heat Sink Improved Coolant Injector Huge Storage Unit Enhanced Optical Array Experimental Sensor Array Advanced Signal Interpreter Experimental Targeting Computer Experimental Core Analyzer Advanced Particle Charger Advanced Powered Armor Advanced Force Field Advanced Corruption Screen > --- WEAPON ----------- Core Stripper > --- INVENTORY -------- Quantum Reactor Centrium Heavy Treads Centrium Wheel Advanced Energy Well Improved Matter Compressor Encrypted Comm Array Centrium Medium Armor Plating Authchip [Propulsion] Subatomic Replicator Terrabomb Compact HERF Cannon Tri-rail Accelerator Linear Accelerator Heavy Hardcell Cannon Heavy Hardcell Cannon Compact Tesla Bomb Launcher Gamma Bomb Array Micro-nuke Launcher Shock Maul Sigix Containment Pod [Rating: 178] Favorites ----------- Power Quantum Reactor Engine Reinforced Deuterium Engine Power Core Fission Core Reactor Quantum Reactor Propulsion Wheel Treads Armored Treads Leg Carbon-fiber Leg Wheel Wheel Hover Unit Combat Linear Gravjet Utility Huge Storage Unit Device Experimental Sensor Array Storage Huge Storage Unit Processor Core Analyzer Hackware Hacking Suite Protection Hardened Medium Armor Plating Weapon Gatling Laser Energy Gun Gatling Laser Energy Cannon Heavy Ion Cannon Ballistic Gun Flak Gun Ballistic Cannon Heavy Gauss Cannon Launcher Compact Tesla Bomb Launcher Impact Weapon Shock Maul Special Melee Weapon Advanced Datajack Build | -11 -10 -10 -9 -9 -8 -8 -8 -7 -7 -7 -7 -7 -7 -6 -6 -6 -6 -6 -6 -6 -5 -5 -5 -5 -5 -4 -4 -4 -4 -4 -4 -3 -3 -3 -3 ------- Run | Jun Mat Min Mat Min Mat Sto Gar Fac Gar Fac Low Low Dat Pro Fac Was Fac Low Low Zio Pro Fac Gar Fac Gar Fac Ext Cet Arc Hub Gar Res Gar Res Qua Slots Evolved 14 | . . . 2 . 2 . . 2 . . . . . . 2 . . . . . . 2 . . . 2 . . . . . 2 . . . Power 1 | . . . . . . . . . . . . . . . . . . . . . . . . . . . . . . . . 1 . . . Propulsion 2 | . . . . . . . . . . . . . . . 1 . . . . . . . . . . 1 . . . . . . . . . Utility 11 | . . . 2 . 2 . . 2 . . . . . . 1 . . . . . . 2 . . . 1 . . . . . 1 . . . Weapon . | . . . . . . . . . . . . . . . . . . . . . . . . . . . . . . . . . . . . Parts Attached 849 | 7 11 3 27 21 49 31 17 39 35 6 8 21 . 16 43 12 39 9 1 19 12 46 25 37 31 23 17 13 9 44 48 4 32 21 73 Power 55 | 1 1 1 2 . 2 4 . 2 . . 1 1 . . 3 1 1 . . 2 . 1 1 4 1 3 2 2 . 3 3 1 1 1 10 Engine 18 | 1 1 1 2 . 2 3 . 2 . . 1 1 . . 3 . . . . . . . . . . . . . . . . . 1 . . Core 9 | . . . . . . 1 . . . . . . . . . 1 1 . . 1 . . . 3 . 1 1 . . . . . . . . Reactor 28 | . . . . . . . . . . . . . . . . . . . . 1 . 1 1 1 1 2 1 2 . 3 3 1 . 1 10 Propulsion 88 | 2 2 . 3 5 6 2 . 3 1 1 . 2 . 4 9 1 3 4 . 1 . 6 . 2 4 5 . 2 . 1 2 1 5 1 10 Treads 38 | . . . . . 2 1 . 2 1 1 . 1 . 2 2 . 2 3 . . . 2 . 1 2 4 . 2 . 1 . . 2 1 6 Leg 10 | 2 . . . . . . . . . . . 1 . 2 . . . . . . . . . . . . . . . . . 1 3 . 1 Wheel 39 | . 2 . 3 5 4 1 . 1 . . . . . . 7 1 1 1 . 1 . 4 . 1 1 1 . . . . 2 . . . 3 Hover 1 | . . . . . . . . . . . . . . . . . . . . . . . . . 1 . . . . . . . . . . Flight . | . . . . . . . . . . . . . . . . . . . . . . . . . . . . . . . . . . . . Utility 355 | 2 3 1 9 4 26 12 . 20 12 3 5 9 . 6 15 2 17 4 1 9 10 24 7 19 13 10 13 3 1 29 18 2 7 8 31 Device 222 | 1 . . 3 3 11 2 . 12 8 3 4 2 . 6 10 1 12 3 1 7 10 15 5 15 8 7 9 . . 20 10 2 3 6 23 Storage 20 | 1 2 . 1 . 1 2 . . 1 . . 2 . . 2 . 2 . . . . . . . 1 . 1 . . 2 1 . . . 1 Processor 21 | . . . 1 . 3 1 . . . . . 1 . . 1 . . . . . . 2 . 1 . 1 1 . . . . . 4 2 3 Hackware 14 | . . 1 . . 2 1 . 2 1 . . . . . . . 1 . . . . 3 . 1 . . . . . 2 . . . . . Protection 78 | . 1 . 4 1 9 6 . 6 2 . 1 4 . . 2 1 2 1 . 2 . 4 2 2 4 2 2 3 1 5 7 . . . 4 Artifact . | . . . . . . . . . . . . . . . . . . . . . . . . . . . . . . . . . . . . Weapon 351 | 2 5 1 13 12 15 13 17 14 22 2 2 9 . 6 16 8 18 1 . 7 2 15 17 12 13 5 2 6 8 11 25 . 19 11 22 Energy Gun 101 | 2 4 1 5 5 8 6 14 6 4 . . 5 . 3 1 . 5 1 . 4 1 8 2 5 5 1 . . . 3 2 . . . . Energy Cannon 137 | . 1 . 5 4 4 . . 3 12 1 1 . . 3 14 5 7 . . 1 1 4 8 2 4 3 1 . 5 6 13 . 16 9 4 Ballistic Gun 10 | . . . . 1 . 1 . . . . . . . . . . 1 . . . . . . . . . 1 1 . . 3 . . 1 1 Ballistic Cannon 30 | . . . 2 . . . . 1 3 . . . . . . . 2 . . 1 . . . 1 1 . . 4 1 2 2 . . 1 9 Launcher 47 | . . . . 2 2 . 2 . 3 1 1 1 . . 1 3 1 . . 1 . . 7 3 3 1 . 1 . . 5 . 3 . 6 Special Weapon . | . . . . . . . . . . . . . . . . . . . . . . . . . . . . . . . . . . . . Impact Weapon 24 | . . . 1 . 1 6 1 4 . . . 3 . . . . 2 . . . . 3 . 1 . . . . . . . . . . 2 Slashing Weapon . | . . . . . . . . . . . . . . . . . . . . . . . . . . . . . . . . . . . . Piercing Weapon . | . . . . . . . . . . . . . . . . . . . . . . . . . . . . . . . . . . . . Special Melee Weapon 2 | . . . . . . . . . . . . . . . . . . . . . . . . . . . . . 2 . . . . . . Unidentified Prototypes 37 | . . . 1 . 1 2 . 1 . . . . . . 1 2 7 . . 2 . 1 . 2 . . . 3 . 4 . . 2 2 6 Corrupted Parts 8 | . . . . 5 . . . . . . . . . . . . . . . . . . . . . . . . . 1 2 . . . . System Corruption 46 | . . . . 31 . . . . . . . . . . . . . . . . . . . . . . . . . 8 7 . . . . Parts Lost 133 | . . . 4 2 13 2 . 1 6 . 2 5 . 1 11 . 10 1 . . . 4 4 5 7 4 . . . 7 9 . 3 . 32 Power 12 | . . . . . 1 1 . . . . . . . . . . 1 . . . . 1 1 . . 1 . . . 1 1 . . . 4 Propulsion 28 | . . . 2 . 3 . . . 1 . . 2 . . 4 . 3 1 . . . 1 . 1 1 . . . . 1 1 . 1 . 6 Utility 72 | . . . . 2 6 1 . 1 4 . 2 2 . . 7 . 3 . . . . 2 3 4 5 2 . . . 4 7 . 2 . 15 Weapon 21 | . . . 2 . 3 . . . 1 . . 1 . 1 . . 3 . . . . . . . 1 1 . . . 1 . . . . 7 Highest Loss Streak 20 | . . . 2 2 6 1 . 1 4 . 2 3 . 1 5 . 6 1 . . . 1 1 2 3 4 . . . 5 3 . 1 . 20 To Critical Strikes 2 | . . . . . . . . . . . . 1 . . . . . . . . . . . . . . . . . . 1 . . . . Average Slot Usage (%) 89 | . 99 100 99 88 88 98 100 95 95 100 100 60 92 91 91 88 98 98 100 91 99 96 87 88 84 85 88 88 84 86 84 81 88 89 85 Engine 3 | . 14 14 10 11 8 8 9 6 7 7 7 1 7 7 6 1 . . . . . . . . . . . . . . . . . 1 . Reactor 1 | . . . . . . . . . . . . . . . . . . . . 2 . 4 4 1 2 5 3 5 5 5 4 9 8 6 8 Treads 6 | . . . . . 2 14 9 7 14 15 15 2 7 7 8 1 3 6 13 10 6 4 . 3 2 9 10 10 10 9 6 . 1 9 8 Leg 1 | . 13 . . . . . . . . . . 2 7 6 . . . . . . . . . . . . . . . . . 1 9 . . Wheel 6 | . 14 28 21 22 12 3 9 6 . . . . . . 10 18 16 12 6 8 13 11 11 6 6 . . . . . 6 9 4 . 1 Device 22 | . 11 . 7 11 13 9 9 14 18 23 30 22 23 23 29 25 28 35 33 23 25 27 23 26 31 29 31 36 31 27 26 23 24 33 26 Storage 6 | . 14 14 11 11 9 9 9 7 7 7 7 1 7 7 6 6 6 6 6 6 6 5 5 5 5 5 5 5 5 5 6 9 5 4 4 Processor 11 | . . . 10 . 8 8 9 7 7 7 7 9 15 15 9 13 13 13 13 13 13 16 15 7 11 13 13 10 10 10 10 9 17 22 24 Hackware 3 | . . 8 11 . 6 13 18 15 7 6 . . . . . . 2 . . . . 2 5 3 . . . . . 3 . . . . . Protection 8 | . 2 5 3 10 9 12 9 10 14 15 15 4 7 7 6 3 5 3 6 8 13 6 5 12 6 9 10 10 9 11 9 9 4 . 2 Energy Gun 7 | . 27 28 19 16 7 15 17 11 2 . . 12 . 6 . . 5 12 13 9 12 9 2 10 3 2 . . . . . . . . . Energy Cannon 4 | . . . 1 5 4 . . 1 8 15 14 . . 6 12 9 6 . . . . . 7 . 4 7 9 . 4 6 7 9 8 8 2 Naked Turns . | . . . . . . . . . . . . . . . . . . . . . . . . . . . . . . . . . . . . Heaviest Build 183 | 14 32 32 38 58 116 117 108 136 145 148 152 146 121 125 139 111 130 115 124 134 135 140 152 150 146 151 148 147 156 156 162 183 183 160 181 Greatest Support 162 | 20 26 26 26 20 40 40 16 20 40 48 48 48 23 43 73 36 36 28 16 32 32 40 40 40 75 155 155 155 155 155 155 32 162 162 150 Greatest Overweight (x) 11 | 1 1 1 1 5 11 6 6 8 7 3 3 10 5 6 9 4 10 7 7 8 4 8 3 5 11 1 . . 1 1 5 5 10 1 7 Average Overweight (x) 3 | . . 1 1 1 2 4 6 6 3 2 2 4 5 4 2 2 4 4 7 5 3 5 3 4 2 . . . . . 3 5 5 . 1 Largest Inventory Capacity 25 | 8 15 15 15 15 25 25 25 25 25 25 25 25 25 25 25 25 25 25 25 25 25 25 25 25 25 25 25 25 25 25 25 25 25 25 25 Average Capacity 22 | 7 13 15 15 15 21 25 25 25 25 25 25 10 25 25 25 25 25 25 25 25 25 25 25 25 25 25 25 25 25 25 25 25 25 25 25 Most Carried 25 | 8 15 15 15 15 25 25 25 25 25 25 25 25 25 25 25 25 25 25 25 25 25 25 25 25 25 25 25 25 25 25 25 25 25 25 25 Average Carried 21 | 5 12 14 13 14 20 24 24 24 22 24 24 9 25 24 24 24 24 24 24 24 25 24 24 24 24 23 24 24 24 24 24 24 24 24 24 Final Capacity 25 | 8 15 15 15 15 25 25 25 25 25 25 25 25 25 25 25 25 25 25 25 25 25 25 25 25 25 25 25 25 25 25 25 25 25 25 25 Final Carried 25 | 8 15 14 15 15 23 25 25 25 24 25 25 25 25 25 24 25 25 24 25 25 25 25 25 24 25 24 25 25 25 25 25 25 25 25 10 Class Distribution -------------------- 50% | Mutant 28% | Scavenger-Mutant 8% | Commander-Mutant 5% | Scavenger-Skirmisher 4% | Hacker-Mutant Dominant Class ---------------- Mutant | -10/Materials Mutant | -10/Mines Scavenger-Mutant | -9/Materials Mutant | -9/Mines Scavenger-Mutant | -8/Materials Scavenger-Mutant | -8/Storage Commander-Mutant | -8/Garrison Hacker-Mutant | -7/Factory Mutant | -7/Garrison Commander-Mutant | -7/Factory Mutant | -7/Lower Caves Mutant | -7/Lower Caves Scavenger-Mutant | -7/Data Miner Scavenger-Mutant | -6/Proximity Caves Mutant | -6/Factory Mutant | -6/Waste Mutant | -6/Factory Mutant | -6/Lower Caves Mutant | -6/Lower Caves Mutant | -6/Zion Mutant | -5/Proximity Caves Mutant | -5/Factory Mutant | -5/Garrison Mutant | -5/Factory Mutant | -5/Garrison Mutant | -4/Factory Commander-Skirmisher | -4/Extension Commander-Mutant | -4/Cetus Commander-Mutant | -4/Archives Scavenger-Mutant | -4/Hub_04(d) Scavenger-Mutant | -4/Garrison Scavenger-Mutant | -3/Research Scavenger-Mutant | -3/Garrison Scavenger-Skirmisher | -3/Research Scavenger-Skirmisher | -3/Quarantine Resources | -11 -10 -10 -9 -9 -8 -8 -8 -7 -7 -7 -7 -7 -7 -6 -6 -6 -6 -6 -6 -6 -5 -5 -5 -5 -5 -4 -4 -4 -4 -4 -4 -3 -3 -3 -3 ----------- Run | Jun Mat Min Mat Min Mat Sto Gar Fac Gar Fac Low Low Dat Pro Fac Was Fac Low Low Zio Pro Fac Gar Fac Gar Fac Ext Cet Arc Hub Gar Res Gar Res Qua Matter Collected 14223 | 270 100 40 282 216 1033 377 136 440 467 27 173 297 . 385 443 296 549 227 422 196 219 440 453 423 805 224 114 399 216 666 871 . 489 210 2318 Remotely . | . . . . . . . . . . . . . . . . . . . . . . . . . . . . . . . . . . . . Salvage Created 27745 | 80 440 139 1209 110 2434 612 307 933 1439 226 322 251 . 92 1147 1482 1195 184 104 . 230 657 1221 1366 1129 481 377 70 197 951 1863 . 2205 407 3885 Parts 1258 | 5 32 14 79 10 137 40 27 39 71 16 12 9 . 3 46 8 53 11 10 . 8 28 56 57 56 14 22 2 11 33 76 . 72 11 190 Haulers Intercepted 10 | . . . 4 . 3 2 . . . . . . . . . . 1 . . . . . . . . . . . . . . . . . . Recyclers Shooed 8 | 1 . . 1 . 3 . . . . . . . . . . . 1 . . . . 1 . 1 . . . . . . . . . . . Parts Field Recycled . | . . . . . . . . . . . . . . . . . . . . . . . . . . . . . . . . . . . . Retrieved Matter . | . . . . . . . . . . . . . . . . . . . . . . . . . . . . . . . . . . . . Parts Self-Destructed 67 | . . . . . . . . . . . 12 11 . 18 . . . 9 10 . 7 . . . . . . . . . . . . . . Prevented 7 | . . . . . . . . . . . 3 . . 4 . . . . . . . . . . . . . . . . . . . . . Kills | -11 -10 -10 -9 -9 -8 -8 -8 -7 -7 -7 -7 -7 -7 -6 -6 -6 -6 -6 -6 -6 -5 -5 -5 -5 -5 -4 -4 -4 -4 -4 -4 -3 -3 -3 -3 ------- Run | Jun Mat Min Mat Min Mat Sto Gar Fac Gar Fac Low Low Dat Pro Fac Was Fac Low Low Zio Pro Fac Gar Fac Gar Fac Ext Cet Arc Hub Gar Res Gar Res Qua Combat Hostiles Destroyed 512 | . 11 5 26 12 54 13 8 19 32 4 5 5 . 2 18 6 26 4 4 . 7 13 25 29 21 7 5 1 . 13 31 . 21 6 79 Melee 1 | . . . . . . . . . . . . . . . . . . . . . . . . . . . . . . . . . . . 1 Guns 191 | . 10 3 21 8 39 13 8 18 6 . . 1 . . . . 3 4 4 . 6 13 4 20 7 1 . . . 2 . . . . . Cannons 193 | . . . 4 . 10 . . . 15 1 2 1 . 1 14 . 8 . . . . . 10 . 5 6 5 . . 10 16 . 9 5 71 AOE 95 | . 1 1 . 4 4 . . . 11 3 3 3 . . 3 6 14 . . . . . 10 6 6 . . . . 1 8 . 5 . 6 Classes Destroyed 26 | 2 5 . 3 2 4 . . 1 . 1 . . . . . 1 1 . . . . . 1 2 . . . . . . . . . . 3 Worker 17 | . . . . . 1 . . . . 1 . . . . . . 7 . . . . . . 4 . . . . . 2 . . . . 2 Builder 21 | . 1 . . . . 1 . . . 1 . . . . . . 5 . . . . 3 . 4 . . 3 . . 1 . . . . 2 Tunneler 3 | 1 . . . . 1 . . . . . . . . . . . 1 . . . . . . . . . . . . . . . . . . Hauler 10 | . . . 4 . 3 2 . . . . . . . . . . 1 . . . . . . . . . . . . . . . . . . Recycler 7 | 1 . . 2 . 1 . . 1 . . . . . . 1 . . . . . . . . . . . . . . 1 . . . . . Mechanic 1 | . . . . . . . . . . . . . . . . . . . . . . . . 1 . . . . . . . . . . . Operator 8 | . 1 . . . . 1 . . . . . . . . . . . . . . . . . . . . . . 6 . . . . . . Watcher 23 | . 3 . 4 . 2 . . 2 . . . . . . 2 . 2 . . . . 2 . . 1 . . 1 . 2 . . . . 2 Swarmer 96 | . 3 3 4 3 8 3 5 4 11 . . . . . 3 . 3 1 3 . 3 . 10 7 6 . 1 . . . 8 . . . 7 Saboteur 4 | . . . . . . . . . . . . . . . . . 1 . . . . . . . . . . . . . . . . . 3 Grunt 214 | . 8 2 13 2 25 5 4 6 15 1 5 . . . 9 . 10 1 . . 1 8 11 10 10 3 3 . . 5 10 . 14 1 32 Brawler 12 | . . . 1 . 4 . . . 3 . . . . . . . . . . . 1 . . . . . . . . . . . . . 3 Duelist 17 | . . . . . 3 . . 1 . 1 . . . . . . . . . . . 1 . 1 . 3 . . . . . . 1 . 6 Protector 3 | . . . . . . . . . . 1 . . . . . . 2 . . . . . . . . . . . . . . . . . . Researcher 2 | . . . . . . . . . . . . . . . . . . . . . . . . . . . . . . . . . . . 2 Sentry 54 | . . . 8 . 9 4 1 3 3 1 1 1 . . 1 . . 1 . . . 1 1 3 3 . 1 . . 2 7 . . 3 . Specialist 14 | . . . . . 4 . . . . . . . . . . . 3 . . . . . 1 . . 1 . . . . 2 . . . 3 Hunter 33 | . . . . . . 1 . . . . . 2 . 1 1 . 3 . 1 . . 1 2 4 1 . . 1 . 1 4 . 5 . 5 Programmer 47 | . . . . . . . . 5 . . . 2 . 1 4 . 4 1 . . 2 2 . 4 . . . . . 4 . . 1 . 17 Heavy 2 | . . . . . 1 . . . . . . . . . . . . . . . . . . . . . . . . 1 . . . . . Q-Series 1 | . . . . . . . . . . . . . . . . . . . . . . . . . . . . . . . . . . . 1 Behemoth 2 | . . . . . . . . . . . . . . . . . . . . . . . 1 . 1 . . . . . . . . . . Compactor 6 | . . . . . . . . . . . . . . . . 6 . . . . . . . . . . . . . . . . . . . Executioner 2 | . . . . . . . . . . . . . . . . . . . . . . . . . . . . . . . . . . . 2 Decomposer 3 | . . . . . . . . . . . . 3 . . . . . . . . . . . . . . . . . . . . . . . Assembled 9 | . . . . 7 . . . . . . . . . . . . . . . . . . . . . . . . . . . . . 2 . Guerrilla 1 | . . . . 1 . . . . . . . . . . . . . . . . . . . . . . . . . . . . . . . Fireman 1 | . . . . . . . . . . . . . . . . . . . . . . . . 1 . . . . . . . . . . . Infiltrator 1 | . . . . . . . . . . . . . . . . . . . . . . . . . . 1 . . . . . . . . . Best Kill Streak 24 | 2 4 3 5 6 7 8 2 6 10 4 3 3 . 1 5 4 24 3 3 . 3 5 5 10 8 2 3 1 3 8 6 . 8 2 15 Combat Bots Only 17 | . 3 3 5 6 6 7 2 5 10 3 3 3 . 1 5 4 17 3 3 . 3 4 5 6 8 2 2 1 . 5 6 . 8 2 15 Max Kills in Single Turn 7 | 1 2 1 2 2 4 2 2 1 4 4 2 3 . 1 2 1 7 2 1 . 1 2 3 5 3 1 1 1 1 2 2 . 2 1 2 Gunslinging 1 | . . . . . 1 . . . . . . . . . . . . 1 . . . . . . 1 . . . . . . . . . . Exploded 5 | . 1 1 . 2 3 . . . 3 3 2 3 . . 2 1 5 . . . . . 3 2 3 . . . . 1 2 . 2 . 2 Melee 1 | . . . . . . . . . . . . . . . . . . . . . . . . . . . . . . . . . . . 1 Uniques/NPCs Destroyed . | . . . . . . . . . . . . . . . . . . . . . . . . . . . . . . . . . . . . Combat | -11 -10 -10 -9 -9 -8 -8 -8 -7 -7 -7 -7 -7 -7 -6 -6 -6 -6 -6 -6 -6 -5 -5 -5 -5 -5 -4 -4 -4 -4 -4 -4 -3 -3 -3 -3 -------- Run | Jun Mat Min Mat Min Mat Sto Gar Fac Gar Fac Low Low Dat Pro Fac Was Fac Low Low Zio Pro Fac Gar Fac Gar Fac Ext Cet Arc Hub Gar Res Gar Res Qua Damage Taken 34185 | . 444 132 561 362 3204 305 64 754 1258 183 413 491 . 177 2370 98 1667 231 119 . 316 931 1459 1592 1504 953 189 269 181 2198 3197 . 1088 315 7160 Core 4209 | . 63 30 139 66 282 10 20 113 131 63 18 172 . 14 403 28 160 34 9 . 14 75 223 169 255 28 26 21 . 214 119 . 71 17 1222 Absorbed by Shields 4863 | . . . . . 117 . . 184 293 . . . . . 76 . 369 88 44 . 108 162 55 160 24 . 88 . . . . . 16 . 3079 Reduced by Siege Mode 163 | . . . . . . . . . . . . . . . . . . . . . . . . . 76 . . . . 16 20 . . . 51 Redirected to Shielding 123 | . . . . . . . . . . . . . . . . 6 16 . . . . . . 37 64 . . . . . . . . . . Regen/Repaired (Parts) 2587 | . 47 . 180 . 542 518 . 140 . . . . . . . . . . . 688 . 192 . 21 . . . . . 259 . . . . . Core Remaining (%) 49 | 100 . 62 . 48 . . 43 . . . . . . 27 . . . . . . 23 . . . 27 . . . . . 64 . . . . Volleys Fired 1626 | 3 40 12 72 19 134 23 29 61 102 6 14 9 . 7 92 10 47 4 5 1 19 60 75 64 99 26 24 14 32 50 125 . 127 21 200 Largest 2 | 2 2 2 2 2 2 2 2 2 2 2 2 2 . 2 2 2 2 2 2 1 2 2 2 2 2 2 2 2 2 2 2 . 2 2 2 Hottest 240 | 90 115 80 130 150 160 160 160 160 160 130 130 160 . 160 160 130 200 200 200 110 200 200 220 200 210 230 230 122 122 240 240 . 240 188 230 Shots Fired 2498 | 6 80 24 135 41 261 46 41 109 153 8 22 21 . 11 133 15 82 8 11 1 35 98 101 111 116 42 39 28 41 98 166 . 154 31 230 Gun 1011 | 6 80 24 106 34 200 46 40 94 33 . . 18 . 4 . . 23 8 11 . 31 79 19 97 24 5 1 . . 14 14 . . . . Cannon 1349 | . . . 29 4 59 . . 15 113 7 18 2 . 7 130 6 56 . . 1 4 19 56 5 67 34 38 25 41 84 133 . 140 31 225 Launcher 138 | . . . . 3 2 . 1 . 7 1 4 1 . . 3 9 3 . . . . . 26 9 25 3 . 3 . . 19 . 14 . 5 Special . | . . . . . . . . . . . . . . . . . . . . . . . . . . . . . . . . . . . . Kinetic 397 | . . . 8 1 90 . . . 17 . . . . . . . 6 . . . . . . . . . 1 25 18 32 26 . . . 173 Thermal 1690 | 6 62 . 114 37 169 46 21 109 106 7 18 20 . 8 98 5 67 8 11 1 35 98 75 102 91 39 38 . 23 52 76 . 83 14 51 Explosive 23 | . . . . 2 1 . . . . 1 . 1 . . . 9 3 . . . . . . 2 . . . . . . 2 . . . 2 Electromagnetic 388 | . 18 24 13 1 1 . 20 . 30 . 4 . . 3 35 1 6 . . . . . 26 7 25 3 . 3 . 14 62 . 71 17 4 Robot Hit Streak 34 | 2 9 5 17 7 31 19 14 10 19 3 3 11 . 9 8 9 9 16 4 . 9 19 12 30 18 13 8 7 9 10 11 . 28 34 28 Robot Miss Streak 10 | 1 5 3 8 9 8 4 3 7 6 5 8 4 . 3 4 2 4 1 3 . 4 5 4 10 5 2 3 3 2 3 8 . 5 1 4 Penetration Max 1 | . . . . . . . . . . . . . . . . . . . . . . . . . . . . 1 . . . . . . . Secondary Targets 12 | . . . . 1 6 . 1 . . . . . . . . . . 1 . . . 1 . . 2 . . . . . . . . . . Max Gunslinging Chain 1 | . . . . 1 1 . 1 . . . . . . . . . . 1 . . . 1 . . 1 . . . . . . . . . . Capacitor 28 | . . . . . . . . . . . . . . . . . . . . . . . . . 28 . . . . . . . . . . Shots Hit Robots 1590 | 3 49 13 109 31 215 43 17 87 77 4 5 17 . 9 59 8 55 8 9 . 30 71 42 86 48 24 13 17 36 68 56 . 74 13 194 Core Hits 1501 | 3 26 6 131 51 203 35 18 68 90 22 8 21 . 3 31 19 114 8 10 . 19 46 41 92 52 26 10 11 11 30 41 . 50 10 195 Critical Kills 5 | . . . 1 . 1 1 . . . . . . . . . . . . . . . . . . . . . . 1 . . . . . 1 Critical Parts Destroyed 2 | . . . . . . . . . . . . . . . . . . . . . . 1 . . . . . . . . 1 . . . . Critical Strikes 43 | . 2 . 1 . 8 1 . . . . . . . . . . . . . . . 1 . . . . . 2 3 3 4 . 2 1 15 Burn 9 | . 2 . . . 7 . . . . . . . . . . . . . . . . . . . . . . . . . . . . . . Meltdown 4 | . . . 1 . 1 . . . . . . . . . . . . . . . . . . . . . . . 1 . . . . . 1 Destroy 1 | . . . . . . . . . . . . . . . . . . . . . . . . . . . . . . . 1 . . . . Blast 24 | . . . . . . . . . . . . . . . . . . . . . . . . . . . . 2 2 3 3 . . . 14 Corrupt 3 | . . . . . . . . . . . . . . . . . . . . . . . . . . . . . . . . . 2 1 . Smash 2 | . . . . . . 1 . . . . . . . . . . . . . . . 1 . . . . . . . . . . . . . Melee Attacks 68 | . . . 1 . . 16 2 16 . . . . . . . . 3 . . . . 13 . . . . . . 7 . . . . . 10 Kinetic 10 | . . . . . . . . . . . . . . . . . . . . . . . . . . . . . . . . . . . 10 Impact 51 | . . . 1 . . 16 2 16 . . . . . . . . 3 . . . . 13 . . . . . . . . . . . . . Slashing . | . . . . . . . . . . . . . . . . . . . . . . . . . . . . . . . . . . . . Piercing . | . . . . . . . . . . . . . . . . . . . . . . . . . . . . . . . . . . . . Sneak Attacks 10 | . . . . . . 1 . 1 . . . . . . . . . . . . . 1 . . . . . . 7 . . . . . . Combat Hostiles . | . . . . . . . . . . . . . . . . . . . . . . . . . . . . . . . . . . . . Follow-up Attacks . | . . . . . . . . . . . . . . . . . . . . . . . . . . . . . . . . . . . . Damage Inflicted 70195 | 46 666 258 1814 843 5236 1033 724 1974 2955 618 442 599 . 295 2569 2023 4351 196 219 . 833 2292 2620 4632 2769 1210 623 818 1175 3130 3833 . 4455 542 14402 Guns 19221 | 46 634 164 1324 416 3788 890 380 1853 830 . . 269 . 117 . . 574 196 219 . 833 2218 324 2678 736 159 29 . . 397 147 . . . . Cannons 30775 | . . . 280 50 911 . . 27 1169 126 167 74 . 178 1897 27 959 . . . . . 1089 . 795 830 594 602 1175 2428 1993 . 3188 542 11674 Explosions 19446 | . 32 94 210 377 537 . 344 . 956 492 275 256 . . 672 1996 2767 . . . . . 1207 1954 1238 221 . 216 . 305 1693 . 1267 . 2337 Melee 743 | . . . . . . 143 . 94 . . . . . . . . 41 . . . . 74 . . . . . . . . . . . . 391 Ramming 10 | . . . . . . . . . . . . . . . . . 10 . . . . . . . . . . . . . . . . . . Kinetic 14520 | . . . 26 . 1677 . . . 247 . . . . . . . 95 . . . . . . . . . 29 602 498 892 401 . . . 10053 Thermal 33550 | 46 534 94 1675 466 3081 890 506 1880 2041 126 251 343 . 203 1287 27 1401 196 219 . 833 2218 1620 2678 1562 989 594 . 677 1841 930 . 2120 . 2222 Explosive 9793 | . . . . 377 378 . . . . 492 . 256 . . 493 1996 2407 . . . . . . 1282 . . . . . . 593 . . . 1519 Electromagnetic 11970 | . 132 164 113 . 100 . 218 . 667 . 191 . . 92 789 . 397 . . . . . 1000 672 1207 221 . 216 . 397 1909 . 2335 542 608 Impact 352 | . . . . . . 143 . 94 . . . . . . . . 41 . . . . 74 . . . . . . . . . . . . . Slashing . | . . . . . . . . . . . . . . . . . . . . . . . . . . . . . . . . . . . . Piercing . | . . . . . . . . . . . . . . . . . . . . . . . . . . . . . . . . . . . . Highest Corruption 39 | . . . . 39 3 3 3 2 1 . 3 1 1 2 7 30 36 36 36 36 2 3 2 3 1 1 . . . 8 10 . 1 1 1 Average Corruption 6 | . . . . 7 2 3 3 1 1 . 2 1 1 1 2 20 32 36 36 36 1 2 1 2 1 1 . . . 2 4 . 1 1 1 Corruption Purged 35 | . . . . . . . . 2 1 . 3 . . 3 . . . . . . 3 3 2 6 1 1 . . . 9 . . . . 1 Corruption Blocked 23 | . . . . . . . . . . . . . . . . . . . . . . . . . . . . . . . . . . . 23 Effects 495 | . . . . 21 23 29 25 1 2 . 1 35 2 3 14 14 76 38 77 6 6 1 2 2 1 1 . . . 20 53 . 15 11 16 Message Errors 113 | . . . . 3 4 9 6 . . . . 8 1 1 1 4 17 9 17 1 1 . 2 1 1 . . . . 5 13 . 4 4 1 Matter Fused 121 | . . . . 5 8 9 4 1 1 . . 11 . . 4 5 15 9 21 . . . . 1 . . . . . 4 15 . 2 1 5 Heat Flow Errors 67 | . . . . 3 2 4 7 . . . . 6 . 2 1 . 10 5 9 1 2 . . . . . . . . 4 6 . 3 1 1 Energy Discharges 50 | . . . . 3 3 . 1 . . . . 3 . . 3 . 6 8 9 1 1 1 . . . . . . . 2 5 . . 1 3 Parts Rejected 4 | . . . . . . . . . . . . . . . . . 1 1 . . . . . . . . . . . . 1 . . . 1 Parts Fused 4 | . . . . . . 1 . . 1 . . . . . . 1 . . . . . . . . . . . . . . 1 . . . . Data Loss (minor) 61 | . . . . 4 3 2 2 . . . 1 2 . . 2 2 8 5 12 2 1 . . . . . . . . 2 6 . 3 1 3 Data Loss (major) 25 | . . . . . 1 2 2 . . . . 2 . . 1 . 2 . 6 1 . . . . . . . . . 2 4 . 1 1 . Misfires 24 | . . . . 2 . 1 2 . . . . 3 . . 1 2 5 . 2 . 1 . . . . . . . . . 1 . 1 2 1 Alerts 5 | . . . . 1 . . . . . . . . 1 . 1 . . 1 . . . . . . . . . . . . . . 1 . . Misdirections 6 | . . . . . . . . . . . . . . . . . 6 . . . . . . . . . . . . . . . . . . Weapon Failures 15 | . . . . . 2 1 1 . . . . . . . . . 6 . 1 . . . . . . 1 . . . 1 1 . . . 1 Overload Shots . | . . . . . . . . . . . . . . . . . . . . . . . . . . . . . . . . . . . . Overflow Damage 1611 | . . . 170 17 77 . . 5 21 1 29 29 . . 72 . 103 . . . . 74 96 8 . 2 12 37 90 175 136 . 49 . 408 Projectiles 792 | . . . 9 . 26 . . 5 . 1 17 29 . . 68 . 3 . . . . . 34 . . 2 12 . 90 123 42 . 49 . 282 Explosions 723 | . . . 161 17 51 . . . 21 . 12 . . . 4 . 81 . . . . . 62 8 . . . 37 . 52 94 . . . 123 Melee 96 | . . . . . . . . . . . . . . . . . 19 . . . . 74 . . . . . . . . . . . . 3 Knockbacks 129 | . . . . . . . . . 7 . . . . . . . . . . . . 2 . . . . . 5 1 3 4 . . . 107 Impact 1 | . . . . . . . . . . . . . . . . . . . . . . 1 . . . . . . . . . . . . . Kinetic 107 | . . . . . . . . . 6 . . . . . . . . . . . . . . . . . . 5 1 3 4 . . . 88 Secondary 21 | . . . . . . . . . 1 . . . . . . . . . . . . 1 . . . . . . . . . . . . 19 Self-Inflicted Damage 1678 | . . . 140 7 8 . 20 . 159 . 24 8 . . 130 99 177 . . . . . 290 29 63 52 . . . 87 62 . 114 . 209 Shots 53 | . . . 2 1 1 . 1 . 6 . 1 1 . . 3 7 3 . . . . . 8 1 3 2 . . . 1 5 . 4 . 3 Rammed 1 | . . . . . . . . . . . . . . . . . 1 . . . . . . . . . . . . . . . . . . Targets Rammed 1 | . . . . . . . . . . . . . . . . . 1 . . . . . . . . . . . . . . . . . . Kicked . | . . . . . . . . . . . . . . . . . . . . . . . . . . . . . . . . . . . . Crushed . | . . . . . . . . . . . . . . . . . . . . . . . . . . . . . . . . . . . . Highest Temperature 497 | 90 426 192 327 263 238 181 251 387 136 27 437 248 . 207 134 . 324 168 198 75 198 149 497 414 337 390 25 . . 396 343 . 192 131 239 Average Temperature 76 | 48 103 89 77 83 58 43 56 58 27 18 155 89 . 107 36 . 83 75 69 34 81 66 95 89 79 199 11 . . 102 74 . 66 28 104 Received Heat Transfer 5802 | . 168 30 168 24 1135 63 9 170 365 9 90 18 . 9 409 . 376 23 . . 10 167 208 347 282 30 50 33 9 301 415 . 107 45 732 Effects 8 | . 1 . 2 . . . . . . . 1 . . . . . . . . . . . 4 . . . . . . . . . . . . Shutdowns 4 | . 1 . . . . . . . . . 1 . . . . . . . . . . . 2 . . . . . . . . . . . . Interference 4 | . . . 2 . . . . . . . . . . . . . . . . . . . 2 . . . . . . . . . . . . Siege Activations 12 | . . . . . . . . . . . . . . . . . . . . . . . . . 1 1 . . . 3 2 . . . 5 Total Turns 153 | . . . . . . . . . . . . . . . . . . . . . . . . . 25 10 . . . 50 14 . . . 54 Longest Duration 29 | . . . . . . . . . . . . . . . . . . . . . . . . . 25 10 . . . 29 11 . . . 20 Robots Corrupted 25 | . . 1 . . . . . . . . . . . . 1 . . . . . . . 1 2 3 . . 1 . . 7 . 8 1 . Combat Hostiles 24 | . . 1 . . . . . . . . . . . . 1 . . . . . . . 1 2 3 . . 1 . . 7 . 7 1 . Parts Fried 79 | . 3 2 . . . . . . . . . . . 3 5 . 6 . . . . 3 5 2 5 . . 1 . . 12 . 24 8 . Impact Corruptions 5 | . . . . . . . . . . . . . . . . . 1 . . . . 3 . . . . . . . . . . . . 1 Robots Melted 9 | . . . 1 . 1 . . 1 . . . . . 1 . . 1 . . . 1 . . 1 . . . . 1 . . . . . 1 Combat Hostiles 8 | . . . 1 . 1 . . 1 . . . . . 1 . . 1 . . . 1 . . 1 . . . . . . . . . . 1 Parts Melted 87 | . 8 . 4 . 20 2 1 14 2 . . 1 . . 4 . 3 . 2 . 1 4 1 8 . 1 2 . 4 3 1 . . . 1 Heat Transferred 42025 | 124 1472 100 2163 579 6328 1850 900 3887 2482 148 285 624 . 350 1675 37 1954 300 375 . 1275 3375 725 4250 1100 534 259 . 592 905 740 . 1660 . 977 Parts Sabotaged 4 | . . . . . . . . . . . . . . . . . . . . . . . . . . . . . . . . . . . 4 Parts Stolen . | . . . . . . . . . . . . . . . . . . . . . . . . . . . . . . . . . . . . Parts Stripped . | . . . . . . . . . . . . . . . . . . . . . . . . . . . . . . . . . . . . Power Chain Reactions 27 | . 1 1 . . 1 . 1 . 6 . 1 . . . 1 . 2 . . . . . 3 . 3 . . . . 2 1 . 3 . 1 Missiles Intercepted . | . . . . . . . . . . . . . . . . . . . . . . . . . . . . . . . . . . . . Alert | -11 -10 -10 -9 -9 -8 -8 -8 -7 -7 -7 -7 -7 -7 -6 -6 -6 -6 -6 -6 -6 -5 -5 -5 -5 -5 -4 -4 -4 -4 -4 -4 -3 -3 -3 -3 ------- Run | Jun Mat Min Mat Min Mat Sto Gar Fac Gar Fac Low Low Dat Pro Fac Was Fac Low Low Zio Pro Fac Gar Fac Gar Fac Ext Cet Arc Hub Gar Res Gar Res Qua Peak Influence 2619 | 10 250 156 568 139 897 367 901 576 2559 1488 . . . . 566 249 913 . . . . 462 1334 1550 2142 1290 1360 1378 778 1036 2161 1215 2619 1533 2369 Initial 1473 | . 6 11 . 45 . 367 134 472 247 1343 . . . . 31 184 174 . . . . 11 323 700 1085 1124 617 649 487 58 438 1215 929 1473 758 Average 799 | 5 77 91 221 46 525 249 519 375 1249 1337 . . . . 272 228 543 . . . . 257 856 1137 1545 1199 1045 1079 427 767 1352 1215 2001 1402 1257 Maximum Alert Level 5 | . 1 . 2 . 3 1 3 2 5 4 . . . . 2 1 3 . . . . 2 4 4 5 4 4 4 3 3 5 4 5 4 5 Low Security (%) 17 | 100 90 100 54 100 17 13 3 . . . . . . . 53 23 20 . . . . 35 . . . . . . 9 7 . . . . . Level 1 17 | . 9 . 28 . 3 86 40 64 12 . . . . . 2 76 26 . . . . 57 8 . . . . . 36 2 . . . . . Level 2 15 | . . . 17 . 54 . 20 35 14 . . . . . 44 . 1 . . . . 6 27 . . . 8 5 39 14 8 . . . . Level 3 18 | . . . . . 24 . 35 . 12 . . . . . . . 51 . . . . . 36 52 6 3 39 46 14 75 18 . 2 . 51 Level 4 20 | . . . . . . . . . 27 100 . . . . . . . . . . . . 26 47 50 96 52 47 . . 48 100 10 100 33 Level 5 9 | . . . . . . . . . 31 . . . . . . . . . . . . . . . 42 . . . . . 24 . 86 . 7 High Security . | . . . . . . . . . . . . . . . . . . . . . . . . . . . . . . . . . . . 7 Max Security . | . . . . . . . . . . . . . . . . . . . . . . . . . . . . . . . . . . . . Sterilizations 1 | . . . . . 1 . . . . . . . . . . . . . . . . . . . . . . . . . . . . . . Squads Dispatched 132 | . 2 . 7 . 9 4 . 9 . 3 . . . . 8 . 9 . . . . 11 . 19 . 4 3 . . 9 . . . 4 31 Investigation 21 | . 1 . 4 . 1 1 . 1 . 1 . . . . 1 . 3 . . . . 4 . . . . . . . 3 . . . . 1 Extermination 27 | . . . . . . . . 4 . 1 . . . . 5 . 1 . . . . 4 . 2 . 1 . . . 2 . . . . 7 Reinforcement 33 | . 1 . 3 . 4 2 . 4 . . . . . . 1 . 3 . . . . 2 . 3 . . 1 . . 2 . . . 4 3 Assault 40 | . . . . . 4 . . . . 1 . . . . 1 . 2 . . . . 1 . 6 . 3 2 . . 2 . . . . 18 Garrison 11 | . . . . . . 1 . . . . . . . . . . . . . . . . . 8 . . . . . . . . . . 2 Intercept . | . . . . . . . . . . . . . . . . . . . . . . . . . . . . . . . . . . . . Searches Triggered . | . . . . . . . . . . . . . . . . . . . . . . . . . . . . . . . . . . . . Data Miner Redirects 19 | . . . . . . . . . . . . . . . 1 . 4 . . . . . . 4 . 1 . . . 1 . . . . 8 Construction Impeded 3 | . . . . . . 1 . . . . . . . . . . . . . . . . . . . . 1 . . . . . . . 1 Haulers Reinforced 3 | . . . . . . . . 1 . . . . . . . . . . . . . 1 . . . . . . . . . . . 1 . Active Scanning Responses . | . . . . . . . . . . . . . . . . . . . . . . . . . . . . . . . . . . . . Cargo Convoy Interrupts 1 | . . . . . . . . . . . . . . . . . 1 . . . . . . . . . . . . . . . . . . Stealth | -11 -10 -10 -9 -9 -8 -8 -8 -7 -7 -7 -7 -7 -7 -6 -6 -6 -6 -6 -6 -6 -5 -5 -5 -5 -5 -4 -4 -4 -4 -4 -4 -3 -3 -3 -3 --------- Run | Jun Mat Min Mat Min Mat Sto Gar Fac Gar Fac Low Low Dat Pro Fac Was Fac Low Low Zio Pro Fac Gar Fac Gar Fac Ext Cet Arc Hub Gar Res Gar Res Qua Distress Signals 19 | . 1 . 1 . 2 1 . . . . . . . . 2 . 1 . . . . 1 . . . . . 2 . 5 . . . 3 . Communications Jammed 149 | . . . . . . . . . . . . . . . 33 . 15 . . . . 35 . 10 . . . . . 44 12 . . . . Distress Signals 111 | . . . . . . . . . . . . . . . 33 . 12 . . . . 29 . 5 . . . . . 32 . . . . . Times Spotted 923 | . 17 5 46 22 80 20 16 34 34 13 8 6 . 6 29 5 42 5 4 . 10 44 33 58 27 20 25 16 27 38 47 . 30 19 137 Peak Tracking Total 18 | . 3 3 6 7 7 4 4 5 10 5 3 3 . 3 7 2 13 3 2 . 4 5 5 7 10 6 6 6 1 9 7 . 6 4 18 Tactical Retreats 45 | . 1 . 3 . 4 . . . 2 . . . . . 3 . . 1 . . 2 . 2 1 2 3 1 1 . 3 10 . 2 . 4 Traps | -11 -10 -10 -9 -9 -8 -8 -8 -7 -7 -7 -7 -7 -7 -6 -6 -6 -6 -6 -6 -6 -5 -5 -5 -5 -5 -4 -4 -4 -4 -4 -4 -3 -3 -3 -3 ------- Run | Jun Mat Min Mat Min Mat Sto Gar Fac Gar Fac Low Low Dat Pro Fac Was Fac Low Low Zio Pro Fac Gar Fac Gar Fac Ext Cet Arc Hub Gar Res Gar Res Qua Traps Triggered 64 | . . . 1 2 4 4 2 . 8 1 4 . . . 2 . 1 . . . . 2 6 1 9 . . . . 1 9 . 6 1 . Indirectly 15 | . . . . . . . . . 6 . 4 . . . . . . . . . . . . . 2 . . . . . 3 . . . . Trap Hack Attempts . | . . . . . . . . . . . . . . . . . . . . . . . . . . . . . . . . . . . . Triggered . | . . . . . . . . . . . . . . . . . . . . . . . . . . . . . . . . . . . . Disarmed . | . . . . . . . . . . . . . . . . . . . . . . . . . . . . . . . . . . . . Reprogrammed . | . . . . . . . . . . . . . . . . . . . . . . . . . . . . . . . . . . . . Reused . | . . . . . . . . . . . . . . . . . . . . . . . . . . . . . . . . . . . . Traps Extracted . | . . . . . . . . . . . . . . . . . . . . . . . . . . . . . . . . . . . . Installed . | . . . . . . . . . . . . . . . . . . . . . . . . . . . . . . . . . . . . Triggered 2 | . . . . . . . . . . . . . . 2 . . . . . . . . . . . . . . . . . . . . . Machines | -11 -10 -10 -9 -9 -8 -8 -8 -7 -7 -7 -7 -7 -7 -6 -6 -6 -6 -6 -6 -6 -5 -5 -5 -5 -5 -4 -4 -4 -4 -4 -4 -3 -3 -3 -3 ---------- Run | Jun Mat Min Mat Min Mat Sto Gar Fac Gar Fac Low Low Dat Pro Fac Was Fac Low Low Zio Pro Fac Gar Fac Gar Fac Ext Cet Arc Hub Gar Res Gar Res Qua Machines Disabled 111 | . 1 . 4 . 2 3 5 . 10 . . . . . 19 . 17 . . . . . 5 2 4 1 1 1 1 10 5 . 7 3 10 Max in Single Turn 10 | . 1 . 3 . 1 1 1 . 1 . . . . . 10 . 4 . . . . . 1 2 1 1 . 1 1 2 1 . 1 1 1 Garrison Access 5 | . . . . . . . . . . . . . . . . . 1 . . . . 2 . . . . . . . 1 . . . . 1 Garrison Relay 21 | . . . . . . . 4 . 4 . . . . . . . . . . . . . 3 . 3 . . . . . 3 . 4 . . Network Hub 1 | . . . . . . . . . . . . . . . . . . . . . . . . . . . . . . 1 . . . . . Machines Repaired 1 | . . . . . . . . . . . . . . . . . . . . . . . . . . . . . . 1 . . . . . Machines Sabotaged . | . . . . . . . . . . . . . . . . . . . . . . . . . . . . . . . . . . . . Overloaded Fab Kills . | . . . . . . . . . . . . . . . . . . . . . . . . . . . . . . . . . . . . Hacking | -11 -10 -10 -9 -9 -8 -8 -8 -7 -7 -7 -7 -7 -7 -6 -6 -6 -6 -6 -6 -6 -5 -5 -5 -5 -5 -4 -4 -4 -4 -4 -4 -3 -3 -3 -3 --------- Run | Jun Mat Min Mat Min Mat Sto Gar Fac Gar Fac Low Low Dat Pro Fac Was Fac Low Low Zio Pro Fac Gar Fac Gar Fac Ext Cet Arc Hub Gar Res Gar Res Qua Machines Accessed 173 | . 10 1 15 1 13 12 4 11 1 5 1 1 4 . 7 . 7 . 1 . . 26 1 13 2 4 6 1 1 9 2 1 1 3 9 Terminals 95 | . 7 1 9 . 8 8 4 5 1 2 . 1 . . 4 . 1 . . . . 9 1 4 2 2 5 1 . 8 2 . 1 3 6 Fabricators 9 | . . . . . . . . . . 1 . . . . . . 1 . . . . 4 . 3 . . . . . . . . . . . Repair Stations 18 | . 1 . 2 . 2 2 . 2 . . . . . . . . 1 . . . . 5 . 1 . 1 . . . . . . . . 1 Recycling Units 13 | . 2 . 2 . 1 1 . 2 . 1 . . . . 1 . . . . . . 2 . . . . 1 . . . . . . . . Scanalyzers 18 | . . . 2 . 2 . . 1 . 1 . . . . 1 . 3 . . . . 3 . 3 . 1 . . . . . . . . 1 Garrison Access 12 | . . . . . . 1 . 1 . . . . . . 1 . 1 . . . . 3 . 2 . . . . . 1 . 1 . . 1 Total Hacks 601 | . 39 4 58 1 58 57 8 35 3 14 1 1 30 . 12 . 20 . 1 . . 84 2 41 5 11 20 1 25 29 9 2 1 10 19 Successful 328 | . 20 2 40 1 31 39 3 19 2 6 1 1 30 . 2 . 7 . 1 . . 33 . 23 2 6 8 1 25 10 3 1 . 3 8 Failed 269 | . 18 2 17 . 26 17 5 16 1 8 . . . . 10 . 13 . . . . 51 2 18 3 5 12 . . 19 6 1 1 7 11 Catastrophic 41 | . . . . . 2 1 1 1 . . . . . . 4 . 1 . . . . 10 1 6 . . 2 . . 3 2 . 1 3 3 Database Lockouts 4 | . 1 . 1 . 1 1 . . . . . . . . . . . . . . . . . . . . . . . . . . . . . Manual 220 | . 22 4 30 . 36 17 2 9 2 5 . . . . 3 . 3 . . 4 . 30 . 8 . 6 11 1 . 12 7 . . 6 2 Terminals 310 | . 23 4 33 . 41 36 8 18 3 7 . 1 . . 8 . 3 . . . . 26 2 9 5 8 18 1 . 28 9 . 1 10 8 Fabricators 36 | . . . . . . . . . . 2 . . . . . . 2 . . . . 24 . 8 . . . . . . . . . . . Repair Stations 69 | . 5 . 8 . 6 13 . 9 . . . . . . . . 2 . . . . 18 . 6 . 1 . . . . . . . . 1 Recycling Units 45 | . 11 . 9 . 2 6 . 6 . 2 . . . . 1 . . . . . . 6 . . . . 2 . . . . . . . . Scanalyzers 66 | . . . 8 . 9 . . 1 . 3 . . . . 1 . 12 . . . . 7 . 15 . 2 . . . . . . . . 8 Garrison Access 17 | . . . . . . 2 . 1 . . . . . . 2 . 1 . . . . 3 . 3 . . . . . 1 . 2 . . 2 Terminal Hacks 141 | . 6 2 10 1 9 15 2 6 1 2 1 1 30 . 1 . . . 1 . . 3 . 1 2 3 5 1 25 5 2 . . 2 4 Record 41 | . . . . . . . . . . . . 1 11 . . . . . . . . . . . . . 1 . 25 . . . . . 3 Part Schematic 17 | . . . . . . 3 . 1 . 1 . . 11 . 1 . . . . . . . . . . . . . . . . . . . . Robot Schematic 5 | . . . . . . . . . . . . . 5 . . . . . . . . . . . . . . . . . . . . . . Robot Analysis 16 | . 2 2 1 . 3 4 . 1 . . . . . . . . . . . . . 1 . . . . 1 . . 1 . . . . . Prototype ID Bank 10 | . 1 . 2 . 1 1 . . . . . . 3 . . . . . . . . . . . . . 2 . . . . . . . . Open Door 7 | . . . . 1 . 1 . . . . 1 . . . . . . . 1 . . . . . . 1 . 1 . . . . . . 1 Open DSF 1 | . . . . . . . . . . . . . . . . . . . . . . . . . . . . . . . . . . 1 . Branch Access Points 3 | . . . . . 1 . . 1 . . . . . . . . . . . . . . . . . 1 . . . . . . . . . Emergency Access Points 3 | . . . . . . . . . 1 . . . . . . . . . . . . . . . 1 . . . . . 1 . . . . Terminal Index 6 | . 1 . 1 . 1 1 . 1 . . . . . . . . . . . . . . . . . . . . . . . . . 1 . Garrison Index 1 | . . . . . . . . 1 . . . . . . . . . . . . . . . . . . . . . . . . . . . Alert Level 1 | . . . . . . 1 . . . . . . . . . . . . . . . . . . . . . . . . . . . . . Unreport Threat 10 | . . . 3 . 1 3 . 1 . . . . . . . . . . . . . . . . . . . . . 2 . . . . . Locate Traps 12 | . 2 . 1 . . 1 . . . 1 . . . . . . . . . . . 2 . 1 . 1 1 . . 2 . . . . . Recall Reinforcements 1 | . . . 1 . . . . . . . . . . . . . . . . . . . . . . . . . . . . . . . . Hauler Manifests 2 | . . . 1 . 1 . . . . . . . . . . . . . . . . . . . . . . . . . . . . . . Zone Layout 1 | . . . . . 1 . . . . . . . . . . . . . . . . . . . . . . . . . . . . . . Garrison Registry 2 | . . . . . . . 1 . . . . . . . . . . . . . . . . . . . . . . . 1 . . . . Patrol Navigation 2 | . . . . . . . 1 . . . . . . . . . . . . . . . . . 1 . . . . . . . . . . Fabricator Hacks 12 | . . . . . . . . . . . . . . . . . . . . . . 8 . 4 . . . . . . . . . . . Load Schematic 7 | . . . . . . . . . . . . . . . . . . . . . . 5 . 2 . . . . . . . . . . . Build 5 | . . . . . . . . . . . . . . . . . . . . . . 3 . 2 . . . . . . . . . . . Repair Station Hacks 45 | . 4 . 7 . 4 12 . 7 . . . . . . . . 1 . . . . 7 . 3 . . . . . . . . . . . Scan Component 27 | . 2 . 4 . 2 6 . 4 . . . . . . . . 1 . . . . 6 . 2 . . . . . . . . . . . Repair 18 | . 2 . 3 . 2 6 . 3 . . . . . . . . . . . . . 1 . 1 . . . . . . . . . . . Recycling Unit Hacks 12 | . 3 . 3 . . 2 . 2 . 1 . . . . . . . . . . . 1 . . . . . . . . . . . . . Report Inventory 5 | . 2 . 2 . . 1 . . . . . . . . . . . . . . . . . . . . . . . . . . . . . Retrieve Components 7 | . 1 . 1 . . 1 . 2 . 1 . . . . . . . . . . . 1 . . . . . . . . . . . . . Scanalyzer 40 | . . . 6 . 8 . . . . 1 . . . . . . 4 . . . . 3 . 12 . 2 . . . . . . . . 4 Insert Component 21 | . . . 3 . 4 . . . . 1 . . . . . . 3 . . . . 2 . 5 . 1 . . . . . . . . 2 Analyze 19 | . . . 3 . 4 . . . . . . . . . . . 1 . . . . 1 . 7 . 1 . . . . . . . . 2 Garrison Access Hacks 9 | . . . . . . 1 . 1 . . . . . . . . 1 . . . . 3 . 1 . . . . . 1 . 1 . . . Unlock Access 6 | . . . . . . 1 . 1 . . . . . . . . . . . . . 1 . 1 . . . . . 1 . 1 . . . Seal Access 3 | . . . . . . . . . . . . . . . . . 1 . . . . 2 . . . . . . . . . . . . . Unauthorized Hacks 69 | . 7 . 14 . 10 9 1 3 1 2 . . . . 1 . 1 . . . . 8 . 2 . 1 3 . . 4 1 . . 1 . Terminals 51 | . 2 . 9 . 10 6 1 3 1 2 . . . . 1 . 1 . . . . 3 . 2 . 1 3 . . 4 1 . . 1 . Track 6 | . . . 2 . 2 2 . . . . . . . . . . . . . . . . . . . . . . . . . . . . . Assimilate 4 | . . . . . 1 . . 2 . . . . . . . . . . . . . . . . . . . . . 1 . . . . . Botnet 32 | . 1 . 6 . 5 3 1 1 1 1 . . . . 1 . 1 . . . . 3 . 1 . 1 3 . . 1 1 . . 1 . Disrupt 1 | . . . . . 1 . . . . . . . . . . . . . . . . . . . . . . . . . . . . . . Operators 6 | . 1 . 1 . 1 1 . . . 1 . . . . . . . . . . . . . 1 . . . . . . . . . . . Sabotage 2 | . . . . . . . . . . . . . . . . . . . . . . . . . . . . . . 2 . . . . . Fabricators 3 | . . . . . . . . . . . . . . . . . . . . . . 3 . . . . . . . . . . . . . Report 1 | . . . . . . . . . . . . . . . . . . . . . . 1 . . . . . . . . . . . . . Liberate 1 | . . . . . . . . . . . . . . . . . . . . . . 1 . . . . . . . . . . . . . Haulers 1 | . . . . . . . . . . . . . . . . . . . . . . 1 . . . . . . . . . . . . . Repair Stations . | . . . . . . . . . . . . . . . . . . . . . . . . . . . . . . . . . . . . Recycling Units 14 | . 5 . 4 . . 3 . . . . . . . . . . . . . . . 2 . . . . . . . . . . . . . Reject 5 | . 2 . 1 . . 1 . . . . . . . . . . . . . . . 1 . . . . . . . . . . . . . Recyclers 3 | . 1 . . . . 1 . . . . . . . . . . . . . . . 1 . . . . . . . . . . . . . Mask 4 | . 1 . 2 . . 1 . . . . . . . . . . . . . . . . . . . . . . . . . . . . . Tunnel 2 | . 1 . 1 . . . . . . . . . . . . . . . . . . . . . . . . . . . . . . . . Scanalyzers 1 | . . . 1 . . . . . . . . . . . . . . . . . . . . . . . . . . . . . . . . Extract 1 | . . . 1 . . . . . . . . . . . . . . . . . . . . . . . . . . . . . . . . Garrison Access . | . . . . . . . . . . . . . . . . . . . . . . . . . . . . . . . . . . . . Data Cores Recovered 3 | . 1 . . . . . . . . . . . . . . . . . . . . . . 1 . . . . . 1 . . . . . Used 1 | . 1 . . . . . . . . . . . . . . . . . . . . . . . . . . . . . . . . . . Hacking Detections 146 | . 9 1 14 . 13 9 4 11 1 5 . . . . 7 . 6 . . . . 23 1 13 2 3 6 . . 7 2 1 1 2 5 Full Trace Events 16 | . 1 . 1 . 1 . . 1 . 1 . . . . 1 . 3 . . . . 4 . . 1 . . . . 1 . . . . 1 Feedback Events 2 | . . . . . . . . 1 . . . . . . 1 . . . . . . . . . . . . . . . . . . . . Corruption 1 | . . . . . . . . . . . . . . . 1 . . . . . . . . . . . . . . . . . . . . Hackware Fried 1 | . . . . . . . . 1 . . . . . . . . . . . . . . . . . . . . . . . . . . . Feedback Blocked . | . . . . . . . . . . . . . . . . . . . . . . . . . . . . . . . . . . . . Robot Schematics Acquired 12 | . . . . . . . . . . . . . 5 . . . . . . 4 . . . . . . . . . . . . . . 3 Robots Built 5 | . . . . . . . . . . . . . . . . . . . . . . 3 . 2 . . . . . . . . . . . Authchips 2 | . . . . . . . . . . . . . . . . . . . . . . 1 . 1 . . . . . . . . . . . Time 267 | . . . . . . . . . . . . . . . . . . . . . . 174 . 93 . . . . . . . . . . . Total Robot Build Rating 29 | . . . . . . . . . . . . . . . . . . . . . . 15 . 14 . . . . . . . . . . . Part Schematics Acquired 55 | . . . 7 . 3 3 . 1 . 1 . . 11 . 1 . 1 . . 14 . 1 . 4 . 1 . . . . . . . . 7 Parts Built 2 | . . . . . . . . . . . . . . . . . . . . . . 1 . 1 . . . . . . . . . . . Authchips 1 | . . . . . . . . . . . . . . . . . . . . . . 1 . . . . . . . . . . . . . Time 160 | . . . . . . . . . . . . . . . . . . . . . . 102 . 58 . . . . . . . . . . . Total Part Build Rating 15 | . . . . . . . . . . . . . . . . . . . . . . 8 . 7 . . . . . . . . . . . Parts Repaired 18 | . 2 . 3 . 2 6 . 3 . . . . . . . . . . . . . 1 . 1 . . . . . . . . . . . Time 602 | . 64 . 90 . 76 246 . 70 . . . . . . . . . . . . . 28 . 28 . . . . . . . . . . . Parts Recycled . | . . . . . . . . . . . . . . . . . . . . . . . . . . . . . . . . . . . . Recycled Matter . | . . . . . . . . . . . . . . . . . . . . . . . . . . . . . . . . . . . . Retrieved Matter . | . . . . . . . . . . . . . . . . . . . . . . . . . . . . . . . . . . . . Retrieved Components 26 | . 2 . 10 . . 10 . . . 2 . . . . . . . . . . . 2 . . . . . . . . . . . . . Parts Scanalyzed 19 | . . . 3 . 4 . . . . 1 . . . . . . 1 . . . . 2 . 5 . 1 . . . . . . . . 2 Part Schematics Acquired 14 | . . . 3 . 3 . . . . . . . . . . . 1 . . . . 1 . 4 . 1 . . . . . . . . 1 Parts Damaged 1 | . . . 1 . . . . . . . . . . . . . . . . . . . . . . . . . . . . . . . . Bothacking | -11 -10 -10 -9 -9 -8 -8 -8 -7 -7 -7 -7 -7 -7 -6 -6 -6 -6 -6 -6 -6 -5 -5 -5 -5 -5 -4 -4 -4 -4 -4 -4 -3 -3 -3 -3 ------------ Run | Jun Mat Min Mat Min Mat Sto Gar Fac Gar Fac Low Low Dat Pro Fac Was Fac Low Low Zio Pro Fac Gar Fac Gar Fac Ext Cet Arc Hub Gar Res Gar Res Qua Used RIF Installer . | . . . . . . . . . . . . . . . . . . . . . . . . . . . . . . . . . . . . Robots Hacked 2 | . . . . . . . . . . . . . . . . . . . . . . . . . . . . . 2 . . . . . . Non-combat 2 | . . . . . . . . . . . . . . . . . . . . . . . . . . . . . 2 . . . . . . Combat . | . . . . . . . . . . . . . . . . . . . . . . . . . . . . . . . . . . . . Robot Hacks Applied 7 | . . . . . . . . . . . . . . . . . . . . . . . . . . . . . 7 . . . . . . parse_system 1 | . . . . . . . . . . . . . . . . . . . . . . . . . . . . . 1 . . . . . . check_alert 6 | . . . . . . . . . . . . . . . . . . . . . . . . . . . . . 6 . . . . . . Relay Couplers Released 97 | . . . . . . . 18 . 19 . . . . . . . . . . . . . 10 . 11 . . . . 1 13 . 20 4 1 Machine Destruction 90 | . . . . . . . 18 . 19 . . . . . . . . . . . . . 10 . 11 . . . . 1 13 . 17 . 1 Programmers 7 | . . . . . . . . . . . . . . . . . . . . . . . . . . . . . . . . . 3 4 . Fabnet Peak Effective % . | . . . . . . . . . . . . . . . . . . . . . . . . . . . . . . . . . . . . Robots Rewired 26 | . . . . . . . . . 6 . . . . . . . . . . . . 1 3 . 3 . 11 . . . 2 . . . . Allies Hacked . | . . . . . . . . . . . . . . . . . . . . . . . . . . . . . . . . . . . . Hacks Repelled . | . . . . . . . . . . . . . . . . . . . . . . . . . . . . . . . . . . . . Allies | -11 -10 -10 -9 -9 -8 -8 -8 -7 -7 -7 -7 -7 -7 -6 -6 -6 -6 -6 -6 -6 -5 -5 -5 -5 -5 -4 -4 -4 -4 -4 -4 -3 -3 -3 -3 -------- Run | Jun Mat Min Mat Min Mat Sto Gar Fac Gar Fac Low Low Dat Pro Fac Was Fac Low Low Zio Pro Fac Gar Fac Gar Fac Ext Cet Arc Hub Gar Res Gar Res Qua Total Allies 69 | . . 3 . 1 . 10 . 2 6 . . . . 1 . . . . 1 . . 4 3 5 5 . 19 5 . . 2 . 2 . . Largest Group 12 | . . 3 3 1 . 10 10 3 6 6 2 . . 1 1 . . . 1 . . 2 3 5 5 5 12 12 6 5 2 2 2 . . Highest-Rated Group 838 | . . 40 40 31 . 173 173 61 132 132 64 . . 96 96 . . . 106 . . 136 109 229 273 273 619 838 603 461 238 238 238 . . Highest-Rated Ally 159 | . . 16 16 31 . 29 29 29 32 32 32 . . 96 96 . . . 106 . . 68 68 68 95 95 159 159 137 96 119 119 119 . . Warlord Squad Rendezvous 15 | . . . . . . . . . . . . . . . 1 . 2 . . . . 5 . 3 . 1 . . . 2 . . . 1 . Dakka 2 | . . . . . . . . . . . . . . . . . . . . . . . . 1 . 1 . . . . . . . . . Infantry 2 | . . . . . . . . . . . . . . . . . 1 . . . . 1 . . . . . . . . . . . . . Muscle 4 | . . . . . . . . . . . . . . . 1 . . . . . . 1 . . . . . . . 1 . . . 1 . Ranger 3 | . . . . . . . . . . . . . . . . . 1 . . . . 2 . . . . . . . . . . . . . Pyro 3 | . . . . . . . . . . . . . . . . . . . . . . 1 . 2 . . . . . . . . . . . Ghost 1 | . . . . . . . . . . . . . . . . . . . . . . . . . . . . . . 1 . . . . . Total Orders 64 | . . . 8 . . . 5 12 . . 2 . . . . . . . . . . 4 3 22 . . 1 3 4 . . . . . . STAY 24 | . . . 5 . . . 3 6 . . 1 . . . . . . . . . . . 2 2 . . 1 2 2 . . . . . . FOLLOW 22 | . . . 3 . . . 2 6 . . 1 . . . . . . . . . . 2 1 4 . . . 1 2 . . . . . . PICKUP 2 | . . . . . . . . . . . . . . . . . . . . . . 2 . . . . . . . . . . . . . EXPLORE 13 | . . . . . . . . . . . . . . . . . . . . . . . . 13 . . . . . . . . . . . RETURN 3 | . . . . . . . . . . . . . . . . . . . . . . . . 3 . . . . . . . . . . . Ally Attacks 724 | . . . 18 5 . 45 41 23 9 40 9 . . 15 6 . . . . . . 37 3 61 10 30 90 126 15 70 29 . 42 . . Total Damage 26344 | . . . 188 83 . 644 500 258 156 844 364 . . 615 580 . . . . . . 2773 135 2523 609 1077 3217 4584 581 3267 1163 . 2183 . . Kills 180 | . . . 4 2 . 7 10 1 3 10 4 . . 6 3 . . . . . . 20 . 18 3 4 24 21 4 21 4 . 11 . . Allies Corrupted 4 | . . . . . . . . . . . . . . . . . . . . . . . . 1 . . 3 . . . . . . . . Allies Melted 1 | . . . . . . . . . . . . 1 . . . . . . . . . . . . . . . . . . . . . . . Intel | -11 -10 -10 -9 -9 -8 -8 -8 -7 -7 -7 -7 -7 -7 -6 -6 -6 -6 -6 -6 -6 -5 -5 -5 -5 -5 -4 -4 -4 -4 -4 -4 -3 -3 -3 -3 ------- Run | Jun Mat Min Mat Min Mat Sto Gar Fac Gar Fac Low Low Dat Pro Fac Was Fac Low Low Zio Pro Fac Gar Fac Gar Fac Ext Cet Arc Hub Gar Res Gar Res Qua Robot Analysis Total 16 | . 2 2 1 . 3 4 . 1 . . . . . . . . . . . . . 1 . . . . 1 . . 1 . . . . . Derelict Logs Recovered 13 | . . 2 . 1 . . . . . . . 2 . 1 . . . 2 2 2 1 . . . . . . . . . . . . . . Drone Launches 16 | . . . . . . . . . . . . . . . . . . . . . . . . 16 . . . . . . . . . . . Drone Recoveries 14 | . . . . . . . . . . . . . . . . . . . . . . . . 14 . . . . . . . . . . . Exploration | -11 -10 -10 -9 -9 -8 -8 -8 -7 -7 -7 -7 -7 -7 -6 -6 -6 -6 -6 -6 -6 -5 -5 -5 -5 -5 -4 -4 -4 -4 -4 -4 -3 -3 -3 -3 ------------- Run | Jun Mat Min Mat Min Mat Sto Gar Fac Gar Fac Low Low Dat Pro Fac Was Fac Low Low Zio Pro Fac Gar Fac Gar Fac Ext Cet Arc Hub Gar Res Gar Res Qua Turns Passed 65951 | 97 1619 542 3198 884 3361 1618 1020 2677 3303 966 3449 5820 426 3309 1865 301 1223 698 1468 2839 1493 2772 1761 1996 1870 636 1500 575 2214 1282 2164 129 2275 1174 3427 Spaces Moved 27102 | 61 894 443 2497 600 1758 469 470 940 726 250 859 1665 77 635 804 183 652 426 687 1530 842 1399 979 929 835 334 492 315 297 601 976 64 829 531 1053 Core 1199 | 8 . . . . . . . . . . . 1191 . . . . . . . . . . . . . . . . . . . . . . . Treads 7947 | . . . . . 130 235 . 2 702 250 859 474 77 581 215 . . . . . . . . . 379 334 492 315 297 601 249 . 232 531 992 Legs 472 | 53 363 . . . . . . . . . . . . 54 . . . . . . . . . . . . . . . . . . 2 . . Wheels 17484 | . 531 443 2497 600 1628 234 470 938 24 . . . . . 589 183 652 426 687 1530 842 1399 979 929 456 . . . . . 727 64 595 . 61 Hover . | . . . . . . . . . . . . . . . . . . . . . . . . . . . . . . . . . . . . Flight . | . . . . . . . . . . . . . . . . . . . . . . . . . . . . . . . . . . . . Fastest Speed 50 | 50 105 105 95 95 110 190 190 190 205 325 325 150 560 320 135 120 135 140 205 145 145 131 140 140 125 152 152 152 152 152 150 190 160 160 147 Average Speed 196 | 114 128 105 97 109 145 257 190 205 403 373 381 337 560 486 170 134 149 157 205 182 145 161 140 160 178 152 152 152 166 159 166 190 228 190 233 Slowest Speed 680 | 120 190 105 105 155 490 325 190 650 410 410 405 560 560 640 320 150 240 205 205 220 160 220 140 175 255 225 152 152 237 237 240 190 680 240 240 Overloaded Moves . | . . . . . . . . . . . . . . . . . . . . . . . . . . . . . . . . . . . . Propulsion Burnouts . | . . . . . . . . . . . . . . . . . . . . . . . . . . . . . . . . . . . . Robots Hopped . | . . . . . . . . . . . . . . . . . . . . . . . . . . . . . . . . . . . . Cave-ins Triggered . | . . . . . . . . . . . . . . . . . . . . . . . . . . . . . . . . . . . . Exploration Rate (%) 62 | 3 99 98 98 91 96 82 57 32 83 8 91 99 68 73 16 95 22 60 73 90 87 36 76 35 64 10 64 72 80 58 77 3 71 14 84 Regions Visited 35 Branch Regions 16 Pre-discovered Areas 8 | . 1 1 1 . . . . . . . 1 . 1 1 . . . . . 1 1 . . . . . . . . . . . . . . Known Exits Taken 16 | . . . . . 1 1 . 1 . 1 . . . . . . 1 1 . . 1 1 . 1 . 1 1 1 1 1 . 1 . 1 . Unknown Exits Taken 11 | 1 1 1 1 1 . . . . . . 1 1 1 1 . . . . 1 1 . . . . . . . . . . . . . . . Scrap Searched 25 | . . 1 . 2 . . . . . . 3 3 . 3 . . . 3 3 4 3 . . . . . . . . . . . . . . Spaces Dug 271 | . . . 2 . 6 4 2 23 . 2 8 . . . 16 28 6 . . . 4 31 8 5 26 5 17 . . . 30 . 30 9 9 Terrain Destroyed 1141 | . 4 5 39 19 38 4 5 23 6 39 17 50 . . 84 168 108 . . . 4 31 37 93 43 12 24 7 12 28 59 . 48 11 123 Melee 36 | . . . 1 . . 4 2 15 . . . . . . . . 2 . . . . 12 . . . . . . . . . . . . . Projectile 410 | . . . 2 2 22 . . 8 . 3 13 . . . 30 1 19 . . . 4 19 19 5 35 12 24 7 12 23 51 . 36 11 52 AOE 695 | . 4 5 36 17 16 . 3 . 6 36 4 50 . . 54 167 87 . . . . . 18 88 8 . . . . 5 8 . 12 . 71 Terrain Rammed . | . . . . . . . . . . . . . . . . . . . . . . . . . . . . . . . . . . . . Walls Destroyed . | . . . . . . . . . . . . . . . . . . . . . . . . . . . . . . . . . . . . Machines Disabled . | . . . . . . . . . . . . . . . . . . . . . . . . . . . . . . . . . . . . Actions | -11 -10 -10 -9 -9 -8 -8 -8 -7 -7 -7 -7 -7 -7 -6 -6 -6 -6 -6 -6 -6 -5 -5 -5 -5 -5 -4 -4 -4 -4 -4 -4 -3 -3 -3 -3 --------- Run | Jun Mat Min Mat Min Mat Sto Gar Fac Gar Fac Low Low Dat Pro Fac Was Fac Low Low Zio Pro Fac Gar Fac Gar Fac Ext Cet Arc Hub Gar Res Gar Res Qua Total 37117 | 78 1286 495 3124 790 2303 790 542 1522 934 274 1007 1845 76 841 1165 213 807 445 738 1583 1065 1787 1284 1307 1122 418 1207 384 1980 819 1337 71 1048 662 1768 Wait 6154 | . 314 34 470 123 279 196 15 431 21 5 115 102 . 167 182 . 13 2 37 1 188 237 103 242 46 10 528 29 1623 92 122 . 5 70 352 Move 27068 | 60 893 442 2496 599 1757 469 469 940 725 249 858 1664 76 634 804 182 652 425 686 1529 841 1398 978 928 833 333 491 314 296 600 973 64 827 530 1053 Hop . | . . . . . . . . . . . . . . . . . . . . . . . . . . . . . . . . . . . . Pick Up 406 | 8 16 1 29 12 45 19 1 15 8 5 7 30 . 6 20 5 24 1 4 14 . 13 11 17 15 9 5 4 4 13 13 1 1 6 24 Fast Attach 223 | 7 2 1 4 2 13 6 . 9 3 . . 8 . 6 9 2 10 5 . 5 5 9 1 5 8 9 7 3 2 13 11 1 10 7 40 Attach 198 | . 4 . 10 4 23 7 . 4 8 1 2 8 . 2 10 2 10 2 1 5 . 9 4 12 10 8 2 2 2 9 5 3 . 2 27 Detach 56 | . . . 3 1 8 1 . 2 2 . . 4 . . 2 . 4 . . 2 . 2 1 3 3 4 1 1 2 1 2 1 3 . 3 Swap 431 | . 5 2 13 15 13 18 17 26 24 5 6 5 . 8 24 8 19 2 . 9 7 28 20 20 13 6 8 8 5 22 32 . 22 12 9 Drop 446 | . 12 3 26 15 31 15 1 18 4 3 5 15 . 11 22 4 25 4 5 17 5 16 8 15 16 13 14 9 7 19 17 1 6 14 50 Fire 1626 | 3 40 12 72 19 134 23 29 61 102 6 14 9 . 7 92 10 47 4 5 1 19 60 75 64 99 26 24 14 32 50 125 . 127 21 200 Melee 68 | . . . 1 . . 16 2 16 . . . . . . . . 3 . . . . 13 . . . . . . 7 . . . . . 10 Ram . | . . . . . . . . . . . . . . . . . . . . . . . . . . . . . . . . . . . . Kick . | . . . . . . . . . . . . . . . . . . . . . . . . . . . . . . . . . . . . Crush . | . . . . . . . . . . . . . . . . . . . . . . . . . . . . . . . . . . . . Escape Stasis 188 | . . . . . . 20 8 . 4 . . . . . . . . . . . . . 39 . 44 . 2 . . . 24 . 47 . . Rewire 252 | . . . . . . . . . 33 . . . . . . . . . . . . 2 44 . 35 . 125 . . . 13 . . . . Trap . | . . . . . . . . . . . . . . . . . . . . . . . . . . . . . . . . . . . . Miscellaneous 1 | . . . . . . . . . . . . . . . . . . . . . . . . 1 . . . . . . . . . . . Route ------- -11/Junkyard -10/Materials (discovered 5 exits: *Mat x3 / *Min x2) -10/Mines (discovered 3 exits: *Mat x2 / [*Exi]) -9/Materials (discovered 4 exits: *Mat x3 / *Min) -9/Mines (discovered 2 exits: *Mat x2) -8/Materials (discovered 4 exits: *Fac x3 / *Sto) -8/Storage (discovered 2 exits: *Fac / Gar) -8/Garrison (discovered 3 exits: *Fac x3) -7/Factory (discovered 4 exits: *Fac / *Low x2 / Gar) -7/Garrison (discovered 2 exits: *Fac x2) -7/Factory (discovered 2 exits: *Fac / *Low) -7/Lower Caves -7/Lower Caves (discovered 2 exits: *Fac / *Dat) -7/Data Miner -6/Proximity Caves -6/Factory -6/Waste -6/Factory -6/Lower Caves -6/Lower Caves (discovered 3 exits: *Fac x2 / *Zio) -6/Zion (discovered 2 exits: [*Dee] / [*Pro]) -5/Proximity Caves -5/Factory (discovered 2 exits: *Upp / Gar) -5/Garrison (discovered 4 exits: *Fac x4) -5/Factory (discovered 2 exits: *Fac / Gar) -5/Garrison (discovered 2 exits: *Fac x2) -4/Factory (discovered 5 exits: Upp x2 / *Ext x2 / Arm) -4/Extension (discovered 2 exits: *Res / *Cet) -4/Cetus (discovered 2 exits: *Res / *Arc) -4/Archives (discovered 3 exits: *Res / *Hub x2) -4/Hub_04(d) (discovered 3 exits: *Res x2 / Gar) -4/Garrison (discovered 3 exits: *Res x3) -3/Research -3/Garrison (discovered 3 exits: *Res x3) -3/Research -3/Quarantine History --------- Turn | Location | Event 11 | -11/Junkyard | Discovered new exit (range 15) 98 | -11/Junkyard | Entered Materials 300 | -10/Materials | Build established: Mutant 318 | -10/Materials | Discovered new exit (range 7) 349 | -10/Materials | Discovered new exit (range 16) 831 | -10/Materials | Discovered new exit (range 15) 916 | -10/Materials | Discovered new exit (range 16) 1318 | -10/Materials | Central database locked down 1434 | -10/Materials | Discovered new exit (range 10) 1608 | -10/Materials | Repaired Imp. Terrain Scanner 1635 | -10/Materials | Repaired EM Pulse Gun 1717 | -10/Materials | Entered Mines 1718 | -10/Mines | Learned location of Storage (-8) 1761 | -10/Mines | Learned Materials stockpile data 1800 | -10/Mines | Discovered new exit (range 7) 1852 | -10/Mines | Found a damaged Exp. Sensor Array with a note attached 1857 | -10/Mines | Found Prototype Device 1916 | -10/Mines | Learned Materials emergency access door positions 1924 | -10/Mines | Assisted by bots powering up and referring to "LRC-V3" 2021 | -10/Mines | Discovered new exit (range 8) 2183 | -10/Mines | Deemed a non-threat by the Exiles lab entrance 2183 | -10/Mines | Discovered new exit (range 5) 2259 | -10/Mines | Entered Materials 2259 | -9/Materials | Accompanied by 3 allies 2259 | -9/Materials | Evolved 2 slots: Utility x2 2606 | -9/Materials | Discovered new exit (range 5) 2800 | -9/Materials | Discovered new exit (range 9) 2956 | -9/Materials | Discovered new exit (range 8) 3019 | -9/Materials | Discovered new exit (range 14) 3339 | -9/Materials | Build established: Scavenger-Mutant 3602 | -9/Materials | Central database locked down 3893 | -9/Materials | Repaired Spread Laser 3920 | -9/Materials | Repaired Wheel 3954 | -9/Materials | Repaired Imp. Ion Engine 4002 | -9/Materials | Identified Exp. Sensor Array 5457 | -9/Materials | Entered Mines 5458 | -9/Mines | Assembled infested the area 5460 | -9/Mines | Received a Mining Laser from a helpful Derelict 5463 | -9/Mines | Assisted by a Guerilla fighting off Assembled 5494 | -9/Mines | Met a Derelict bent on vengeance 5684 | -9/Mines | Joined a pair of Derelicts in attacking an 0b10 outpost 5780 | -9/Mines | Discovered new exit (range 8) 5794 | -9/Mines | Discovered new exit (range 10) 5838 | -9/Mines | Build established: Mutant 6034 | -9/Mines | Met a Derelict who couldn't figure out how to use a Trap Extractor 6131 | -9/Mines | Core integrity fell below 50% 6323 | -9/Mines | System corruption reached 10% 6330 | -9/Mines | System corruption reached 30% 6341 | -9/Mines | Entered Materials 6341 | -8/Materials | Evolved 2 slots: Utility x2 6342 | -8/Materials | Identified exit to Factory 6452 | -8/Materials | Build established: Scavenger-Mutant 6579 | -8/Materials | Discovered exit to Factory (range 16) 6621 | -8/Materials | Discovered new exit (range 12) 6906 | -8/Materials | Identified exit to Storage 7122 | -8/Materials | Discovered exit to Factory (range 10) 7541 | -8/Materials | First assault squad dispatched 8473 | -8/Materials | Lost 4 parts (2u2w) 8501 | -8/Materials | Build established: Mutant 8916 | -8/Materials | Central database locked down 9048 | -8/Materials | Repaired Hvy. Armor Plating 9086 | -8/Materials | Repaired Hvy. Armor Plating 9237 | -8/Materials | Sterilization system engaged 9237 | -8/Materials | Non-combat units ordered to evacuate 9266 | -8/Materials | Core integrity fell below 50% 9294 | -8/Materials | Lost 6 parts (1p2n2u1w) 9337 | -8/Materials | Combat units ordered to evacuate 9537 | -8/Materials | Ambient heat levels rising (+10) 9556 | -8/Materials | Build established: Scavenger-Mutant 9687 | -8/Materials | Ambient heat levels rising (+10) 9702 | -8/Materials | Entered Storage 10547 | -8/Storage | Destroyed 7 combat bots 10752 | -8/Storage | Repaired Gatling Laser 10762 | -8/Storage | Repaired Gatling Laser 10792 | -8/Storage | Repaired Hrd. Medium Armor Plating 10831 | -8/Storage | Repaired Hrd. Medium Armor Plating 10876 | -8/Storage | Repaired Coolant Injector 10925 | -8/Storage | Repaired Arm. Treads 10927 | -8/Storage | Build established: Hacker-Mutant 10956 | -8/Storage | Central database locked down 10965 | -8/Storage | Assisted by bots powering up and referring to "LRC-V3" 11077 | -8/Storage | Garrison activated, responded to threat 11281 | -8/Storage | Build established: Commander-Mutant 11288 | -8/Storage | Discovered exit to Factory (range 8) 11320 | -8/Storage | Identified exit to Garrison 11320 | -8/Storage | Entered Garrison 11320 | -8/Garrison | Accompanied by 10 allies 11356 | -8/Garrison | Triggered checkpoint 11397 | -8/Garrison | Discovered exit to Factory (range 48) 11397 | -8/Garrison | Discovered exit to Factory (range 67) 11397 | -8/Garrison | Discovered exit to Factory (range 75) 11510 | -8/Garrison | Triggered checkpoint 11775 | -8/Garrison | Garrison Relay disabled 11842 | -8/Garrison | Triggered checkpoint 11856 | -8/Garrison | Triggered checkpoint 11982 | -8/Garrison | Garrison Relay disabled 12059 | -8/Garrison | Garrison Relay disabled 12070 | -8/Garrison | Garrison Relay disabled 12174 | -8/Garrison | Triggered checkpoint 12340 | -8/Garrison | Entered Factory 12340 | -7/Factory | Accompanied by 3 allies 12340 | -7/Factory | Evolved 2 slots: Utility x2 12374 | -7/Factory | System Shield fried by hacking feedback 12490 | -7/Factory | Build established: Hacker-Mutant 12588 | -7/Factory | Found Rocket Array 12872 | -7/Factory | Identified exit to Lower Caves 13061 | -7/Factory | Repaired Rocket Array 13084 | -7/Factory | Repaired Imp. Shield Generator 13946 | -7/Factory | Repaired Com. Wheel 14578 | -7/Factory | Discovered new exit (range 16) 15017 | -7/Factory | Identified exit to Garrison 15017 | -7/Factory | Entered Garrison 15080 | -7/Garrison | Triggered checkpoint 15139 | -7/Garrison | Lost 4 parts (1n2u1w) 15200 | -7/Garrison | Garrison Relay disabled 15384 | -7/Garrison | Build established: Mutant 15784 | -7/Garrison | Destroyed 7 combat bots 15792 | -7/Garrison | Triggered checkpoint 15970 | -7/Garrison | Destroyed 10 combat bots 16078 | -7/Garrison | Discovered new exit (range 12) 16278 | -7/Garrison | Triggered checkpoint 16352 | -7/Garrison | Garrison Relay disabled 16612 | -7/Garrison | Triggered checkpoint 16814 | -7/Garrison | Triggered checkpoint 16942 | -7/Garrison | Garrison Relay disabled 16983 | -7/Garrison | Discovered new exit (range 11) 17734 | -7/Garrison | Triggered checkpoint 17865 | -7/Garrison | Garrison Relay disabled 18254 | -7/Garrison | Build established: Commander-Mutant 18320 | -7/Garrison | Entered Factory 18320 | -7/Factory | Accompanied by 6 allies 19120 | -7/Factory | First assault squad dispatched 19146 | -7/Factory | Discovered new exit (range 14) 19193 | -7/Factory | Discovered exit to Lower Caves (range 16) 19286 | -7/Factory | Entered Lower Caves 19286 | -7/Lower Caves | Accompanied by 2 allies 19440 | -7/Lower Caves | Build established: Mutant 19874 | -7/Lower Caves | Met a Warlord Commander 19875 | -7/Lower Caves | Learned location of Warlord (-5) 19878 | -7/Lower Caves | Found Encrypted Comm Array 20908 | -7/Lower Caves | Encountered a Warlord checkpoint 22693 | -7/Lower Caves | Discovered new exit (range 14) 22735 | -7/Lower Caves | Entered another Lower Caves area 22876 | -7/Lower Caves | Ambushed by research squad 22879 | -7/Lower Caves | Core integrity fell below 50% 22910 | -7/Lower Caves | Lost 3 parts (2n1w) 23520 | -7/Lower Caves | Discovered new exit (range 9) 25332 | -7/Lower Caves | Attracted the attention of an 0b10 checkpoint 25363 | -7/Lower Caves | Learned location of 1 exit from Factory 26046 | -7/Lower Caves | Discovered new exit (range 14) 26726 | -7/Lower Caves | Encountered a Warlord checkpoint 26753 | -7/Lower Caves | Spotted B-75 Beast 27181 | -7/Lower Caves | Build established: Scavenger-Mutant 28555 | -7/Lower Caves | Entered Data Miner 28555 | -7/Data Miner | Discovered new exit (range 6) 28662 | -7/Data Miner | Met Data Miner 28757 | -7/Data Miner | Acquired the access code to Warlord's prototype stash 28757 | -7/Data Miner | Learned location of Section 7 (-2) 28852 | -7/Data Miner | Received God Mode back door access code from Data Miner 28981 | -7/Data Miner | Entered Proximity Caves 29364 | -6/Proximity Caves | Escorted by Enhanced Grunt 31741 | -6/Proximity Caves | Learned location of Zion (-6) 31752 | -6/Proximity Caves | Attracted the attention of an 0b10 checkpoint 32200 | -6/Proximity Caves | Discovered new exit (range 9) 32290 | -6/Proximity Caves | Entered Factory 32290 | -6/Factory | Accompanied by 1 ally 32290 | -6/Factory | Evolved 2 slots: Propulsion x1, Utility x1 32291 | -6/Factory | Identified exit to Lower Caves 32596 | -6/Factory | Joined by Warlord Muscle squad 33122 | -6/Factory | Build established: Mutant 33285 | -6/Factory | Spotted B-75 Beast 33929 | -6/Factory | Incoming investigation squad redirected 34037 | -6/Factory | Lost 5 parts (2n3u) 34040 | -6/Factory | First assault squad dispatched 34155 | -6/Factory | Sucked down chute 34155 | -6/Factory | Entered Waste 34170 | -6/Waste | EMP discharged 34170 | -6/Waste | System corruption reached 10% 34205 | -6/Waste | Spotted C-40 Crusher 34215 | -6/Waste | Destroyed C-40 Crusher 34222 | -6/Waste | Spotted C-40 Crusher 34225 | -6/Waste | Destroyed C-40 Crusher 34226 | -6/Waste | Core integrity fell below 50% 34234 | -6/Waste | Spotted C-40 Crusher 34238 | -6/Waste | Spotted C-40 Crusher 34238 | -6/Waste | Destroyed C-40 Crusher 34248 | -6/Waste | Destroyed C-40 Crusher 34253 | -6/Waste | Spotted C-40 Crusher 34270 | -6/Waste | EMP discharged 34277 | -6/Waste | Destroyed C-40 Crusher 34314 | -6/Waste | Spotted C-40 Crusher 34316 | -6/Waste | Destroyed C-40 Crusher 34370 | -6/Waste | EMP discharged 34370 | -6/Waste | System corruption reached 30% 34399 | -6/Waste | Found Prototype Launcher 34399 | -6/Waste | Identified Com. Tesla Bomb Launcher 34443 | -6/Waste | Discovered new exit (range 10) 34456 | -6/Waste | Entered Factory 34605 | -6/Factory | Incoming investigation squad redirected 34794 | -6/Factory | Joined by Warlord Ranger squad 35033 | -6/Factory | Cargo convoy interrupted 35120 | -6/Factory | Destroyed 17 combat bots 35121 | -6/Factory | Found Prototype Device 35121 | -6/Factory | Identified Exp. Shield Generator 35123 | -6/Factory | Lost 6 parts (1p1n2u2w) 35156 | -6/Factory | First assault squad dispatched 35178 | -6/Factory | Incoming assault squad redirected 35481 | -6/Factory | Joined by Warlord Infantry squad 35534 | -6/Factory | Incoming assault squad redirected 35643 | -6/Factory | Incoming investigation squad redirected 35669 | -6/Factory | Discovered exit to Lower Caves (range 3) 35679 | -6/Factory | Entered Lower Caves 35791 | -6/Lower Caves | Learned Factory garrison access intel 35819 | -6/Lower Caves | Encountered a Warlord checkpoint 35848 | -6/Lower Caves | Identified exit to Lower Caves 35911 | -6/Lower Caves | Attracted the attention of an 0b10 checkpoint 36280 | -6/Lower Caves | Spotted B-75 Beast 36377 | -6/Lower Caves | Entered another Lower Caves area 36460 | -6/Lower Caves | Identified exit to Factory 36738 | -6/Lower Caves | Encountered a Warlord checkpoint 37047 | -6/Lower Caves | 12-ASH showed up to help 37049 | -6/Lower Caves | 12-ASH revealed a hidden path 37562 | -6/Lower Caves | Discovered new exit (range 11) 37576 | -6/Lower Caves | Learned Factory terminal intel 37644 | -6/Lower Caves | Found Prototype Device 37845 | -6/Lower Caves | Entered Zion 37949 | -6/Zion | System corruption cleaned by Quarantine Array 38062 | -6/Zion | Identified Heart of Steel 38209 | -6/Zion | Discovered new exit (range 11) 38535 | -6/Zion | Visited the Megawrench Repair Shop 39191 | -6/Zion | Learned Factory terminal intel 39421 | -6/Zion | Acquired unknown access codes intercepted by a Zionite 39421 | -6/Zion | Learned Factory interactive machine intel 39607 | -6/Zion | Megawrench repaired 14 parts 40392 | -6/Zion | Opened final containment barrier to the Deep Caves 40414 | -6/Zion | Discovered new exit (range 3) 40414 | -6/Zion | Saw the warning signs outside the Deep Caves entrance 40684 | -6/Zion | Entered Proximity Caves 41034 | -5/Proximity Caves | Spotted B-75 Beast 41115 | -5/Proximity Caves | Learned location of Armory (-4) 41928 | -5/Proximity Caves | Discovered exit to Factory (range 17) 42177 | -5/Proximity Caves | Entered Factory 42177 | -5/Factory | Evolved 2 slots: Utility x2 42178 | -5/Factory | Identified exit to Upper Caves 42179 | -5/Factory | Loaded intel: 51 interactive machine locations 42180 | -5/Factory | Loaded intel: 25 terminal locations 42181 | -5/Factory | Loaded intel: 4 garrison access locations 42375 | -5/Factory | Fabricated X-77 Beamer (x2) 42465 | -5/Factory | Build established: Derelict-Mutant 42468 | -5/Factory | Joined by Warlord Muscle squad 43159 | -5/Factory | Joined by Warlord Infantry squad 43194 | -5/Factory | Build established: Mutant 43264 | -5/Factory | Fabricated R-06 Scavenger (x1) 43276 | -5/Factory | Fabricated Exp. Sensor Array (x1) 43421 | -5/Factory | Joined by Warlord Ranger squad 43924 | -5/Factory | Joined by Warlord Ranger squad 44205 | -5/Factory | Joined by Warlord Pyro squad 44675 | -5/Factory | Identified exit to Garrison 44877 | -5/Factory | First assault squad dispatched 44888 | -5/Factory | Repaired Lyr. Heavy Armor Plating 44949 | -5/Factory | Entered Garrison 44949 | -5/Garrison | Accompanied by 2 allies 44952 | -5/Garrison | Triggered checkpoint 44985 | -5/Garrison | Triggered checkpoint 45107 | -5/Garrison | Triggered checkpoint 45136 | -5/Garrison | Triggered checkpoint 45138 | -5/Garrison | Spotted B-75 Beast 45194 | -5/Garrison | Destroyed B-75 Beast 45338 | -5/Garrison | Discovered new exit (range 6) 45444 | -5/Garrison | Discovered new exit (range 8) 45795 | -5/Garrison | Discovered new exit (range 12) 46098 | -5/Garrison | Triggered checkpoint 46222 | -5/Garrison | Discovered new exit (range 13) 46340 | -5/Garrison | Triggered checkpoint 46352 | -5/Garrison | Garrison Relay disabled 46710 | -5/Garrison | Entered Factory 46710 | -5/Factory | Accompanied by 3 allies 46711 | -5/Factory | Loaded intel: 26 terminal locations 46795 | -5/Factory | Garrison activated, responded to threat 46885 | -5/Factory | Joined by Warlord Pyro squad 46913 | -5/Factory | Fabricated Micro-nuke Launcher? 46962 | -5/Factory | Fabricated X-77 Beamer (x2) 47010 | -5/Factory | First assault squad dispatched 47053 | -5/Factory | Allied Derelicts emerged from ambush trap array 47150 | -5/Factory | Incoming assault squad redirected 47315 | -5/Factory | Repaired Adv. System Restoration Module 47333 | -5/Factory | Identified exit to Garrison 47465 | -5/Factory | Spotted B-75 Beast 47680 | -5/Factory | Garrison activated, responded to threat 47952 | -5/Factory | Joined by Warlord Pyro squad 48051 | -5/Factory | Joined by Warlord Dakka squad 48087 | -5/Factory | Discovered new exit (range 35) 48228 | -5/Factory | Incoming assault squad redirected 48244 | -5/Factory | Identified exit to Factory 48525 | -5/Factory | Incoming assault squad redirected 48527 | -5/Factory | Incoming assault squad redirected 48532 | -5/Factory | Garrison activated, responded to threat 48706 | -5/Factory | Entered Garrison 48774 | -5/Garrison | Triggered checkpoint 48827 | -5/Garrison | Garrison Relay disabled 48838 | -5/Garrison | Triggered checkpoint 48945 | -5/Garrison | Core integrity fell below 50% 48955 | -5/Garrison | Found Unknown Device 48955 | -5/Garrison | Identified Quantum Capacitor 48999 | -5/Garrison | Spotted B-75 Beast 49202 | -5/Garrison | Triggered checkpoint 49253 | -5/Garrison | Garrison Relay disabled 49347 | -5/Garrison | Discovered exit to Factory (range 14) 49440 | -5/Garrison | Triggered checkpoint 49602 | -5/Garrison | Attempted to access garrison exit controls, blocked by remote lockdown 49746 | -5/Garrison | Destroyed 8 combat bots 49751 | -5/Garrison | Lost 3 parts (1n1u1w) 49796 | -5/Garrison | Destroyed B-75 Beast 49824 | -5/Garrison | Triggered checkpoint 49944 | -5/Garrison | Found Quantum Capacitor 50269 | -5/Garrison | Found embedded Infiltrators 50322 | -5/Garrison | Discovered exit to Factory (range 10) 50330 | -5/Garrison | Triggered checkpoint 50391 | -5/Garrison | Garrison Relay disabled 50576 | -5/Garrison | Entered Factory 50576 | -4/Factory | Accompanied by 5 allies 50576 | -4/Factory | Evolved 2 slots: Propulsion x1, Utility x1 50826 | -4/Factory | First assault squad dispatched 50847 | -4/Factory | Incoming assault squad redirected 50863 | -4/Factory | Joined by Warlord Dakka squad 50945 | -4/Factory | Identified exit to Upper Caves 50945 | -4/Factory | Identified exit to Extension 50945 | -4/Factory | Identified exit to Armory 51016 | -4/Factory | Lost 4 parts (1p2u1w) 51212 | -4/Factory | Entered Extension 51299 | -4/Extension | Rescued a captive Derelict 51323 | -4/Extension | Rescued A7 51447 | -4/Extension | Rescued a captive Derelict 51712 | -4/Extension | First assault squad dispatched 51900 | -4/Extension | Rescued a captive Derelict 51901 | -4/Extension | Rescued a captive Derelict 52014 | -4/Extension | Rescued a captive Derelict 52055 | -4/Extension | Rescued a captive Derelict 52055 | -4/Extension | Rescued a captive Derelict 52160 | -4/Extension | Discovered new exit (range 10) 52163 | -4/Extension | Discovered new exit (range 6) 52170 | -4/Extension | Identified exit to Cetus 52217 | -4/Extension | Build established: Commander-Skirmisher 52712 | -4/Extension | Entered Cetus 52712 | -4/Cetus | Accompanied by 12 allies (A7) 52717 | -4/Cetus | Acquired a Cetus Manufacturing Module code from A7 52732 | -4/Cetus | Spotted Cetus Guard 52732 | -4/Cetus | Spotted Cetus Guard 52736 | -4/Cetus | Spotted Cetus Guard 52737 | -4/Cetus | Spotted Cetus Guard 52743 | -4/Cetus | Allies destroyed Cetus Guard 52744 | -4/Cetus | Allies destroyed Cetus Guard 52748 | -4/Cetus | Allies destroyed Cetus Guard 52751 | -4/Cetus | Allies destroyed Cetus Guard 52842 | -4/Cetus | Started Cetus Manufacturing Module 52856 | -4/Cetus | Escorted A7 to Cetus Mainframe 52867 | -4/Cetus | Manufactured an Enhanced Grunt 52892 | -4/Cetus | Manufactured an Enhanced Grunt 52917 | -4/Cetus | Manufactured an Enhanced Grunt 52942 | -4/Cetus | Manufactured an Enhanced Grunt 52967 | -4/Cetus | Manufactured an Enhanced Grunt 52971 | -4/Cetus | Discovered new exit (range 15) 53003 | -4/Cetus | Spotted Cetus Guard 53003 | -4/Cetus | Allies destroyed Cetus Guard 53020 | -4/Cetus | Spotted Cetus Guard 53027 | -4/Cetus | Allies destroyed Cetus Guard 53043 | -4/Cetus | Discovered new exit (range 16) 53051 | -4/Cetus | Met Revision 17 53192 | -4/Cetus | Build established: Commander-Mutant 53269 | -4/Cetus | Identified exit to Archives 53287 | -4/Cetus | Entered Archives 53287 | -4/Archives | Accompanied by 6 allies (A7) 53292 | -4/Archives | Received a hacking code to weaken MAIN.C 53347 | -4/Archives | Unable to access archive contents 53457 | -4/Archives | Discovered new exit (range 14) 53507 | -4/Archives | Discovered new exit (range 13) 53529 | -4/Archives | Unable to access archive contents 53535 | -4/Archives | Discovered new exit (range 15) 53544 | -4/Archives | Unable to access archive contents 53628 | -4/Archives | Identified exit to Hub_04(d) 55501 | -4/Archives | Entered Hub_04(d) 55501 | -4/Hub_04(d) | Accompanied by 5 allies 55766 | -4/Hub_04(d) | Lost 5 parts (1p1n2u1w) 55907 | -4/Hub_04(d) | Found Prototype Device 55907 | -4/Hub_04(d) | Identified Exp. Thermal Shield 55931 | -4/Hub_04(d) | Build established: Scavenger-Mutant 56087 | -4/Hub_04(d) | Joined by Warlord Muscle squad 56198 | -4/Hub_04(d) | Discovered new exit (range 9) 56251 | -4/Hub_04(d) | First assault squad dispatched 56274 | -4/Hub_04(d) | Discovered new exit (range 14) 56328 | -4/Hub_04(d) | Identified exit to Garrison 56461 | -4/Hub_04(d) | Found Unknown Protection 56461 | -4/Hub_04(d) | Identified Hvy. Insulated Plating 56528 | -4/Hub_04(d) | Joined by Warlord Ghost squad 56589 | -4/Hub_04(d) | Identified exit to Research 56708 | -4/Hub_04(d) | Network Hub disabled 56728 | -4/Hub_04(d) | Incoming investigation squad redirected 56783 | -4/Hub_04(d) | Entered Garrison 56857 | -4/Garrison | Triggered checkpoint 57010 | -4/Garrison | Garrison Relay disabled 57270 | -4/Garrison | Spotted B-86 Titan 57291 | -4/Garrison | Triggered checkpoint 57332 | -4/Garrison | Triggered checkpoint 57338 | -4/Garrison | Triggered checkpoint 57456 | -4/Garrison | Lost 3 parts (1n2u) 57586 | -4/Garrison | Discovered exit to Research (range 9) 57608 | -4/Garrison | Triggered checkpoint 57656 | -4/Garrison | Garrison Relay disabled 58168 | -4/Garrison | Rewired Executioner 58177 | -4/Garrison | Rewired Executioner 58329 | -4/Garrison | System corruption reached 10% 58329 | -4/Garrison | Attempted to access garrison exit controls, blocked by remote lockdown 58372 | -4/Garrison | Triggered checkpoint 58378 | -4/Garrison | Allies destroyed B-86 Titan 58402 | -4/Garrison | Found Hvy. Reflective Plating 58558 | -4/Garrison | Discovered exit to Research (range 61) 58558 | -4/Garrison | Discovered exit to Research (range 34) 58558 | -4/Garrison | Discovered exit to Research (range 20) 58604 | -4/Garrison | Triggered checkpoint 58607 | -4/Garrison | Garrison Relay disabled 58635 | -4/Garrison | Found Gamma Bomb Array 58696 | -4/Garrison | Attempted to access garrison exit controls, blocked by remote lockdown 58947 | -4/Garrison | Entered Research 58947 | -3/Research | Accompanied by 2 allies 58947 | -3/Research | Evolved 2 slots: Power x1, Utility x1 59076 | -3/Research | Identified exit to Garrison 59076 | -3/Research | Entered Garrison 59076 | -3/Garrison | Accompanied by 2 allies 59136 | -3/Garrison | Triggered checkpoint 59242 | -3/Garrison | Triggered checkpoint 59262 | -3/Garrison | Triggered checkpoint 59319 | -3/Garrison | Destroyed 8 combat bots 59341 | -3/Garrison | Found Prototype Processor 59341 | -3/Garrison | Identified Exp. Core Analyzer 59363 | -3/Garrison | Found Exp. Core Analyzer 59367 | -3/Garrison | Found Prototype Processor 59367 | -3/Garrison | Identified Exp. Targeting Computer 59391 | -3/Garrison | Triggered checkpoint 59529 | -3/Garrison | Found embedded Infiltrators 59647 | -3/Garrison | Garrison Relay disabled 59751 | -3/Garrison | Discovered new exit (range 10) 59775 | -3/Garrison | Identified exit to Research 60256 | -3/Garrison | Discovered exit to Research (range 15) 60305 | -3/Garrison | Garrison Relay disabled 60430 | -3/Garrison | Triggered checkpoint 60479 | -3/Garrison | Garrison Relay disabled 60723 | -3/Garrison | Garrison Relay disabled 60982 | -3/Garrison | Discovered exit to Research (range 14) 61164 | -3/Garrison | Attempted to access garrison exit controls, blocked by remote lockdown 61351 | -3/Garrison | Entered Research 61416 | -3/Research | Identified exit to DSF 61551 | -3/Research | Revision forces began assault on 0b10 61600 | -3/Research | Met up with Revision 17++ 61965 | -3/Research | Assembled infested ambush trap array 62051 | -3/Research | Research terminal network offline 62250 | -3/Research | Joined by Warlord Muscle squad 62320 | -3/Research | Build established: Scavenger-Skirmisher 62513 | -3/Research | Discovered new exit (range 6) 62522 | -3/Research | Identified exit to Quarantine 62525 | -3/Research | Entered Quarantine 62588 | -3/Quarantine | Found Alien Artifact 62588 | -3/Quarantine | Identified Subatomic Replicator 62775 | -3/Quarantine | First assault squad dispatched 62811 | -3/Quarantine | Build established: Scavenger-Mutant 62899 | -3/Quarantine | Incoming assault squad redirected 63216 | -3/Quarantine | Build established: Scavenger-Skirmisher 63284 | -3/Quarantine | Found Unknown Protection 63284 | -3/Quarantine | Identified Adv. Powered Armor 63373 | -3/Quarantine | Met incapacitated Sigix Warrior 63373 | -3/Quarantine | Lockdown squad dispatched 63382 | -3/Quarantine | Acquired the access code to the Sigix quarantine chamber 63387 | -3/Quarantine | Unlocked Sigix quarantine chamber 63574 | -3/Quarantine | Incoming assault squad redirected 63593 | -3/Quarantine | Found Alien Artifact 63593 | -3/Quarantine | Identified Terrabomb 63593 | -3/Quarantine | Used Terrabomb 63608 | -3/Quarantine | Found Terrabomb 63801 | -3/Quarantine | Incoming assault squad redirected 63936 | -3/Quarantine | Found Alien Impact Weapon 63936 | -3/Quarantine | Identified Core Stripper 64194 | -3/Quarantine | Scanned by Researcher 64625 | -3/Quarantine | Destroyed 8 combat bots 64829 | -3/Quarantine | Incoming assault squad redirected 64943 | -3/Quarantine | Discovered new exit (range 18) 65075 | -3/Quarantine | Incoming assault squad redirected 65300 | -3/Quarantine | Found Alien Artifact 65300 | -3/Quarantine | Identified Core Reset Matrix 65300 | -3/Quarantine | Used Core Reset Matrix 65304 | -3/Quarantine | Sensed 3 artifacts in vicinity 65305 | -3/Quarantine | Incoming assault squad redirected 65422 | -3/Quarantine | Garrison activated, responded to threat 65545 | -3/Quarantine | Incoming assault squad redirected 65628 | -3/Quarantine | Found Prototype Device 65629 | -3/Quarantine | Identified Adv. Kinecellerator 65637 | -3/Quarantine | Found Unknown Launcher 65642 | -3/Quarantine | Incoming assault squad redirected 65697 | -3/Quarantine | High security lockdown imminent 65777 | -3/Quarantine | High security lockdown engaged 65833 | -3/Quarantine | Spotted Executioner 65835 | -3/Quarantine | Spotted Executioner 65881 | -3/Quarantine | Core integrity fell below 50% 65882 | -3/Quarantine | Identified Fusion Bomb Launcher 65886 | -3/Quarantine | Destroyed Executioner 65900 | -3/Quarantine | Core integrity fell below 20% 65908 | -3/Quarantine | Destroyed Executioner 65927 | -3/Quarantine | Lost 20 parts (2p4n10u4w) 65927 | -3/Quarantine | Spotted Investigator 65936 | -3/Quarantine | Destroyed 15 combat bots 65942 | -3/Quarantine | Spotted Striker 65952 | -3/Quarantine | Destroyed by G-67 Veteran with Plasma Rifle Last Messages --------------- 65948_ M-36 Artificer stasis bubble strength at 20. 65948_ Adv. Corruption Screen intercepted 1% system corruption. 65949_ M-36 Artificer stasis bubble strength at 9. 65949_ Held in stasis. 65949_ Investigator is analyzing... 65949_ G-67 Veteran destroyed. 65949_ M-36 Artificer stasis bubble strength at 10. 65950_ Adv. Corruption Screen intercepted 1% system corruption. 65950_ M-36 Artificer stasis bubble strength at 2. 65950_ M-36 Artificer stasis bubble bursts. 65951_ P-80 Master resets P-80 Master, system corruption cleaned. 65951_ M-36 Artificer stasis bubble bursts. 65951_ M-36 Artificer repairs L-61 Swordsman. 65951_ G-67 Veteran stasis bubble strength at 67. 65951_ Destroyed Unknown Reactor. 65951_ Striker knocked back. 65951_ P-80 Master resets Striker, system corruption cleaned. 65952_ Held in stasis. 65952_ Critical hit (Impale). 65952_ Hvy. Hardcell Cannon destroyed. Map ----- +----------------------------------------------------+ | ?????????????????????????????????????????????????? | | ?????????#+####??????????????????????????????????? | | ????????? #??????#########???????????????????? | | ????????? #??????# #???????????????????? | | ????????? #??????# " %!"???????????????????? | | ????????? #??????# """!!%"##?????????????????? | | #######??# #??????# % " #?????????????????? | | # ?# #??????#!""" [%###?????????????????? | | # """ # ######## "% [ %#???????????????????? | | # "&"" + + = #???????????????????? | | # """" # # %"???????????????????? | | # T # + ???????????????????? | | # """" # #%" * ???????????????????? | | # "&"" ?# ###### # " %[#???????????????????? | | # """???# #????# # " [ ###?????????????????? | | # ?????# #????+ #[% [/= # #?????????????????? | | #+#???#+## #????# # " ###?????????????????? | | # #???# #????# # " [ #???????????????????? | | # ##### #????+ # " ##??????????????????? | | + #?##?# # ;#??????????????????? | | # #########+#+###;;# ###;;;##;##?????????????????? | | # #?# ; # ##%!!!; #?????????????????? | | # #?# % # ! #??????????????????? | | # #?# ; !% ##?????????????????? | | # #?# ; % =K!= #?????????????????? | | #?# # = m@=l%* ##????????????????? | | ###?# """"""""" # [g plppc% %#????????????????? | | ????# """ """ + =%p%ghg #????????????????? | | ????# ## %img%% ###????????????????? | | ????# """"""""" ## m|i #??????????????????? | | ????# """ """ ### #% [ % #?????????????????? | | ????# #?# g% ## ##?????????????????? | | ????###############?#### % ##??????????????????? | | ???????????????????????#%%; ##???????????????????? | | ??????????##############%=%##????????????????????? | | ??????????# %%=##?????????????????????? | | ??????????# """ ! %%#%!#?????????????????????? | | ??????????# """ =!= =[%+[##?????????????????????? | | ??????????# "" / " "%%#%#??????????????????????? | | ??????????# ! * ""R""=#%#??????????????????????? | | ??????????# ! [ %""""" #%#??????????????????????? | | ??????????##+##+#########%#??????????????????????? | | ????????????????????????#%#??????????????????????? | | ???????????????????????? %#??????????????????????? | | ????????????????????????"%#??????????????????????? | | ???????????????????????? "#??????????????????????? | | ???????????????????????? #??????????????????????? | | ????????????????????????###??????????????????????? | | ?????????????????????????????????????????????????? | | ?????????????????????????????????????????????????? | +----------------------------------------------------+ Best States ------------- Heat Dissipation 127 Coolant Potential 80 Energy Generation 51 Energy Capacity 1100 Matter Stores 300 Matter Capacity 300 Sight Range 22 Robot Scan Range 20 Terrain Scan Range 24 Terrain Scan Density 10 ECM Strength 2 Jamming Range 14 Power Amplification 40 Additional Mass Support 12 Base Temperature (-) 200 Corruption Block 40 Armor Coverage 1200 Resistance: KI 30 Resistance: TH 30 Resistance: EM 30 Core Shielding 20 Power Shielding 66 Propulsion Shielding 66 Utility Shielding 66 Weapon Cycling 20 Phase Shifting 15 Evasion (%) 55 Targeting Accuracy 12 Target Analysis 8 Core Analysis 12 Recoil Reduction 4 Particle Charging 25 Kinecelleration 50 Salvage Targeting 1 Offensive Hacking 30 Defensive Hacking 10 Authchip Count 6 Item Schematics ----------------- None Robot Schematics ------------------ None Fabricated ------------ X-77 Beamer | x2 | -5/Factory | Authchip R-06 Scavenger | x1 | -5/Factory | Preloaded Exp. Sensor Array | x1 | -5/Factory | Authchip Micro-nuke Launcher | x1 | -5/Factory | Preloaded X-77 Beamer | x2 | -5/Factory | Authchip Alien Tech Used ----------------- Subatomic Replicator Terrabomb Core Stripper Core Reset Matrix Achievements -------------- Great Explorer Revolutionary Research Challenges ------------ None Game ------ Seed MappingMatterCoupler Manual? 0 Play Time 10:46:25 Cumulative 624.9 hours Start 2023.04.05 @ 02:16:13 End 2023.04.07 @ 04:28:00 Sessions 3 Manual Loads 0 Difficulty Rogue Special Mode None Game No. 420 Rogue 420 Adventurer 0 Explorer 0 Win Type - Total 1 Types 1/0/0/0/0/0/0/0/0 Lore% 70 Gallery% 79 Achievement% 59 Wizard Run 0 Options --------- ASCII 0 Keyboard 0 Movement Mouse Keybinds 0 Fullscreen 1 Font 16/SmallcapsGlow Map View 75x55 Tactical HUD 1 Map Filters NONE Filters NONE Steam 1 RUN: dd8e13d3-49d4-4901-a9fb-891d20e79ae2